Cogmind - Beta 17 @@@ ROGUE MODE // 2026.08.12 @ 19:55:38 Player: Dadrick Result: Destroyed by MAIN.C with Improved Heavy Machine Gun Performance ------------- Evolutions (9) 4500 Regions Visited (32) 6400 Robots Destroyed (218) 1090 Value Destroyed (7138) 7138 Prototype IDs (124) 2480 Alien Tech Used (10) 2000 Bonus (21890) 21890 TOTAL SCORE: 45498 Bonus ------- Triggered High Security 500 High Alert Combat Kills 1193 Follower Combat Kills 7816 Network Hubs Disabled 400 Met Data Miner 300 Met Imprinter 300 Was Imprinted 300 Met Zhirov 300 Built Enhanced Grunts 300 A7 Reached Mainframe 300 Used Core Reset Matrix 3000 Destroyed MAIN.C Guards 500 Met MAIN.C 5000 Destroyed MAIN.C Shell 5000 Friendly Fire -3319 Cogmind --------- Core Integrity 0/1600 Matter 425/425 Energy 100/100 System Corruption 29% Temperature Cool (18) +ITN Movement Core (50) Location -1/Command Parts ------- > --- POWER (3) -------- (None) > --- PROPULSION (8) --- (None) > --- UTILITY (11) ----- Enhanced Optical Array Advanced Signal Interpreter Improved Melee Analysis Suite Advanced Target Analyzer Improved Hacking Suite > --- WEAPON (3) ------- (None) > --- INVENTORY (5) ---- AEGIS Remote Shield Compact HERF Cannon Enhanced Nova Cannon Linear Accelerator Peak State ------------ > --- POWER ------------ Light Antimatter Reactor Backup Power VII Micro Antimatter Reactor > --- PROPULSION ------- Improved Cesium-ion Thruster Electron Diverter Impulse Thruster Array Impulse Thruster Array Impulse Thruster Array > --- UTILITY ---------- Large Storage Unit Advanced Weight Redist. System Enhanced Optical Array Advanced Sensor Array Advanced Signal Interpreter Core Analyzer Advanced Reaction Control System Zionite Shade Armor Experimental EM Shield Improved Hacking Suite Advanced Hacking Suite > --- WEAPON ----------- Enhanced Nova Cannon Sigix Broadsword > --- INVENTORY -------- Cooled Nuclear Pulse Thruster ECM Suite AEGIS Remote Shield Improved Hacking Suite Trap Extractor Improved Trap Extractor Transdimensional Reconstructor Transdimensional Reconstructor Integrity Redistributor Integrity Redistributor Compact HERF Cannon Sigix Shearcannon Gamma Bomb Array [Rating: 197] Favorites ----------- Power Light Antimatter Reactor Engine Ion Engine Power Core Light Nuclear Core Reactor Light Antimatter Reactor Propulsion Cooled Nuclear Pulse Thruster Treads Improved Treads Leg Improved Titanium Leg Wheel Maxwheels Hover Unit Improved Gyrokinetic Inverter Flight Unit Cooled Nuclear Pulse Thruster Utility Core Analyzer Device Advanced Weight Redist. System Storage High-capacity Storage Unit Processor Core Analyzer Hackware Advanced Hacking Suite Protection Improved Light Armor Plating Weapon Gauss Rifle Energy Gun Beam Rifle Energy Cannon Subdweller Beam Cannon Ballistic Gun Gauss Rifle Ballistic Cannon Hardcell Cannon Launcher Advanced EMP Blaster Special Weapon Mining Laser Impact Weapon Flail Slashing Weapon Greatsword Build | -11 -10 -10 -8 -8 -7 -7 -7 -7 -6 -6 -6 -6 -5 -5 -5 -5 -5 -4 -4 -4 -4 -4 -4 -4 -4 -3 -3 -2 -2 -2 -1 -1 ------- Run | Yrd Mat Sub Mat Sto Fac Low Low Dat Pro Fac Low Zio Pro Fac Upp Upp Zhi Pro Fac Was Fac Ext Cet Arc Hub Res Qua Res Tes Sec Acc Com Slots Evolved 18 | . . . 4 . 2 . . . . 2 . . . 2 . . . . 2 . . . . . . 2 . 2 . . 2 . Power 2 | . . . . . . . . . . . . . . . . . . . . . . . . . . 1 . . . . 1 . Propulsion 6 | . . . 2 . 1 . . . . 1 . . . . . . . . 1 . . . . . . . . 1 . . . . Utility 9 | . . . 2 . 1 . . . . 1 . . . 2 . . . . 1 . . . . . . 1 . 1 . . . . Weapon 1 | . . . . . . . . . . . . . . . . . . . . . . . . . . . . . . . 1 . Parts Attached 175 | 7 11 12 11 5 10 3 . . 4 16 2 1 . 4 1 . 7 2 8 3 4 6 . 2 1 7 6 9 5 11 . 17 Power 15 | 1 1 . 2 . 1 . . . 1 1 1 . . 1 . . . . 1 . . . . . . . 1 . . . . 4 Engine 4 | 1 1 . 1 . . . . . 1 . . . . . . . . . . . . . . . . . . . . . . . Core 6 | . . . 1 . 1 . . . . 1 1 . . 1 . . . . . . . . . . . . . . . . . 1 Reactor 5 | . . . . . . . . . . . . . . . . . . . 1 . . . . . . . 1 . . . . 3 Propulsion 34 | 2 3 1 1 . 3 . . . . 6 . . . . . . 3 . 2 . 1 . . . . 4 2 2 . 3 . 1 Treads 5 | 2 2 1 . . . . . . . . . . . . . . . . . . . . . . . . . . . . . . Leg 1 | . . . . . . . . . . 1 . . . . . . . . . . . . . . . . . . . . . . Wheel 3 | . 1 . 1 . 1 . . . . . . . . . . . . . . . . . . . . . . . . . . . Hover 1 | . . . . . . . . . . . . . . . . . . . . . . . . . . . . . . 1 . . Flight 24 | . . . . . 2 . . . . 5 . . . . . . 3 . 2 . 1 . . . . 4 2 2 . 2 . 1 Utility 81 | 2 4 4 2 5 5 1 . . 2 4 1 . . 3 1 . 4 2 5 2 3 3 . 1 1 1 . 6 4 8 . 7 Device 33 | 1 1 1 1 3 1 1 . . 1 2 . . . 1 1 . 1 . 2 2 3 2 . . . . . 2 2 4 . 1 Storage 8 | 1 2 . . 1 1 . . . . . . . . . . . 1 . 1 . . . . . . . . 1 . . . . Processor 14 | . . . . . 2 . . . . . 1 . . 1 . . . 2 1 . . . . . . . . 1 . 3 . 3 Hackware 8 | . . . . . . . . . . . . . . 1 . . 1 . 1 . . . . 1 . 1 . 1 1 1 . . Protection 18 | . 1 3 1 1 1 . . . 1 2 . . . . . . 1 . . . . 1 . . 1 . . 1 1 . . 3 Artifact . | . . . . . . . . . . . . . . . . . . . . . . . . . . . . . . . . . Weapon 45 | 2 3 7 6 . 1 2 . . 1 5 . 1 . . . . . . . 1 . 3 . 1 . 2 3 1 1 . . 5 Energy Gun 7 | 1 2 1 . . . . . . . 2 . . . . . . . . . . . . . . . . . . . . . 1 Energy Cannon 8 | . . 2 . . . . . . . 1 . . . . . . . . . 1 . . . . . . 1 1 . . . 2 Ballistic Gun 12 | 1 1 3 4 . 1 1 . . . . . . . . . . . . . . . . . . . . . . 1 . . . Ballistic Cannon 4 | . . . . . . . . . . . . . . . . . . . . . . 1 . . . 2 . . . . . 1 Launcher 6 | . . . 1 . . 1 . . . 1 . 1 . . . . . . . . . . . . . . 1 . . . . 1 Special Weapon 2 | . . 1 . . . . . . . 1 . . . . . . . . . . . . . . . . . . . . . . Impact Weapon 1 | . . . . . . . . . . . . . . . . . . . . . . 1 . . . . . . . . . . Slashing Weapon 5 | . . . 1 . . . . . 1 . . . . . . . . . . . . 1 . 1 . . 1 . . . . . Piercing Weapon . | . . . . . . . . . . . . . . . . . . . . . . . . . . . . . . . . . Special Melee Weapon . | . . . . . . . . . . . . . . . . . . . . . . . . . . . . . . . . . Unidentified Prototypes 21 | . . . 1 . 1 . . . . . . . . . . . 4 . 1 . . 1 . . . 2 2 . 3 2 . 4 Corrupted Parts 1 | . . . . . . . . . . . . . . . . . . . . . . . . . . . . . . . . 1 System Corruption 6 | . . . . . . . . . . . . . . . . . . . . . . . . . . . . . . . . 6 Parts Lost 42 | . 1 2 . 1 2 . . . 1 5 . . . . . . . . 1 . . 1 . . . . . 2 1 2 . 23 Power 7 | . 1 . . . . . . . 1 1 . . . . . . . . . . . . . . . . . . . . . 4 Propulsion 9 | . . . . . . . . . . 2 . . . . . . . . . . . . . . . . . 1 . . . 6 Utility 17 | . . . . 1 . . . . . 1 . . . . . . . . 1 . . . . . . . . 1 1 2 . 10 Weapon 9 | . . 2 . . 2 . . . . 1 . . . . . . . . . . . 1 . . . . . . . . . 3 Highest Loss Streak 9 | . 1 1 . 1 1 . . . 1 1 . . . . . . . . 1 . . 1 . . . . . 2 1 2 . 9 To Critical Strikes . | . . . . . . . . . . . . . . . . . . . . . . . . . . . . . . . . . Average Backups 14 | 1 9 18 18 19 19 19 19 19 18 17 5 5 5 5 5 5 5 4 10 13 13 14 14 14 14 14 14 14 14 14 13 11 Power 1 | . 1 1 1 2 2 2 2 2 1 . 1 1 1 1 1 1 1 1 1 1 1 1 1 1 1 1 . . . . . . Propulsion 2 | . 1 3 4 6 6 6 6 6 6 5 . . . . . . . . . 2 1 1 1 1 1 1 . 1 1 1 1 . Utility 5 | . 3 5 3 4 4 6 6 6 6 5 2 2 2 2 2 2 2 2 5 6 7 8 8 8 8 8 6 6 6 5 4 4 Weapon 4 | 1 3 8 8 6 5 4 4 4 4 4 1 1 1 1 1 1 1 . 1 3 3 3 3 3 3 3 4 5 4 4 3 2 Tool/Special . | . . . . . . . . . . . . . . . . . . . . . . . . . . . . . . . . . Unused Backups 33 | . 4 5 7 1 4 . . . . 1 . . . . . . . . 2 1 2 1 . . . . 1 . . . . 4 Power 2 | . . . . . . . . . . . . . . . . . . . . . 1 . . . . . . . . . . 1 Propulsion 8 | . 2 1 2 . 3 . . . . . . . . . . . . . . . . . . . . . . . . . . . Utility 6 | . 1 1 . . . . . . . . . . . . . . . . 1 1 . . . . . . 1 . . . . 1 Weapon 14 | . 1 3 5 1 1 . . . . 1 . . . . . . . . . . 1 1 . . . . . . . . . . Tool/Special 3 | . . . . . . . . . . . . . . . . . . . 1 . . . . . . . . . . . . 2 Average Slot Usage (%) 86 | . 99 99 73 75 71 78 78 78 77 72 93 93 93 91 94 94 94 94 88 88 89 91 94 94 94 86 84 84 87 87 82 77 Engine 3 | . 13 14 1 7 3 . . . 1 3 . . . . . . . . . . . . . . . . . . . . . . Core 2 | . . . 5 . 3 7 7 7 5 2 6 6 6 5 5 5 5 5 2 . . . . . . 1 4 4 4 4 4 3 Reactor 1 | . . . . . . . . . . . . . . . . . . . 2 5 5 5 5 5 5 2 1 4 4 4 4 4 Treads 5 | . 26 22 . . . . . . . . . . . . . . . . . . . . . . . . . . . . . . Wheel 4 | . 1 5 6 7 7 14 14 14 14 10 . . . . . . . . . . . . . . . . . . . . . . Flight 14 | . . . . . . . . . . 1 40 40 40 35 35 35 35 35 31 31 31 31 31 31 31 27 25 24 26 25 24 21 Device 12 | . 13 10 12 13 9 7 7 7 6 10 13 13 13 13 11 11 11 11 13 20 21 14 15 15 15 14 11 12 16 17 19 16 Storage 6 | . 14 14 7 7 7 7 7 7 7 5 . . . . . . . . 3 5 5 5 5 5 5 4 4 4 4 4 4 3 Processor 10 | . . . . . 9 14 14 14 14 12 17 20 20 19 23 23 20 17 15 15 15 15 15 15 15 14 14 13 13 13 12 13 Hackware 3 | . . . . . . . . . . . . . . 3 5 5 5 5 9 5 5 5 5 5 5 6 9 11 13 10 8 7 Protection 4 | . . 3 9 6 6 7 7 7 7 7 8 6 6 5 5 5 7 11 2 . . 5 5 5 5 4 6 4 . . . 1 Energy Gun 1 | . 14 5 . . . . . . . 2 . . . . . . . . . . . . . . . . . . . . . . Energy Cannon 1 | . . 8 . . . . . . . 1 . . . . . . . . . 1 . . . . . . . 1 1 2 2 3 Ballistic Gun 8 | . 14 11 25 29 21 21 21 21 18 4 . . . . . . . . . . . . . . . . . . . . . . Slashing Weapon 2 | . . . . . . . . . 2 3 5 6 6 5 5 5 5 4 5 3 4 2 . 4 5 4 3 2 2 1 4 2 Peak Build Rating 197 | 7 11 20 66 68 68 68 68 68 69 74 60 57 57 67 69 69 89 88 108 108 113 116 113 117 117 129 148 165 169 174 178 197 Average Rating 79 | 5 9 15 62 62 64 67 68 68 67 69 57 56 57 65 68 69 77 86 95 106 110 111 113 116 116 119 142 153 153 154 172 171 On Entrance 84 | . 7 11 20 64 62 66 68 68 68 68 59 57 57 57 67 69 69 84 88 96 108 108 112 113 117 116 122 148 147 155 166 178 Avg Prop Armor Cover (%) 2 | . 13 12 . . . . . . . 4 1 1 1 1 1 1 1 1 1 . . . . . . 1 1 . . . . 4 Naked Turns . | . . . . . . . . . . . . . . . . . . . . . . . . . . . . . . . . . Heaviest Build 108 | 12 50 64 76 108 74 60 59 59 63 72 25 16 16 17 16 16 17 19 40 49 52 53 52 54 53 53 52 61 61 62 67 88 Greatest Support 77 | 40 46 46 30 30 40 40 40 40 40 40 28 28 28 28 28 28 35 30 54 54 54 63 54 54 63 64 63 76 75 75 75 77 Greatest Overweight (x) 5 | . 4 5 2 3 2 1 1 1 1 2 . . . . . . . . . . . 4 . . . . . . . 1 1 1 Average Overweight (x) . | . . 2 2 2 1 1 1 1 1 1 . . . . . . . . . . . . . . . . . . . . . . Largest Inventory Capacity 20 | 8 20 20 20 20 20 20 20 20 20 20 5 5 5 5 5 5 5 5 15 15 15 15 15 15 15 15 15 15 15 15 15 15 Average Capacity 15 | 7 11 20 20 20 20 20 20 20 20 19 5 5 5 5 5 5 5 5 12 15 15 15 15 15 15 15 15 15 15 15 15 12 Most Carried 20 | 3 12 20 20 20 20 20 20 20 20 20 5 5 5 5 5 5 5 5 15 15 15 15 15 15 15 15 15 15 15 15 15 15 Average Carried 15 | 1 9 19 19 19 19 20 20 20 19 18 4 5 5 4 5 5 4 4 10 14 14 14 15 15 15 14 14 14 14 14 14 12 Final Capacity 20 | 8 20 20 20 20 20 20 20 20 20 5 5 5 5 5 5 5 5 5 15 15 15 15 15 15 15 15 15 15 15 15 15 5 Final Carried 20 | 3 12 20 20 20 20 20 20 20 20 5 5 5 5 5 5 5 5 5 15 15 15 15 15 15 15 15 15 15 14 15 15 4 Class Distribution -------------------- 29% | Mutant 10% | Ninja 10% | Skirmisher 6% | Tank 6% | Hacker-Ninja 6% | Trapper-Ninja 5% | Trapper-Scout 4% | Commander-Ninja 4% | Hacker-Scout Dominant Class ---------------- Mutant | -10/Materials Mutant | -10/Subcaves Tank | -8/Materials Tank | -8/Storage Gunner | -7/Factory Skirmisher | -7/Lower Caves Skirmisher | -7/Lower Caves Skirmisher | -7/Data Miner Skirmisher | -6/Proximity Caves Mutant | -6/Factory Ninja | -6/Lower Caves Ninja | -6/Zion Ninja | -5/Proximity Caves Ninja | -5/Factory Ninja | -5/Upper Caves Ninja | -5/Upper Caves Ninja | -5/Zhirov Ninja | -4/Proximity Caves Hacker-Ninja | -4/Factory Infiltrator-Ninja | -4/Waste Trapper-Ninja | -4/Factory Trapper-Scout | -4/Extension Commander-Sprinter | -4/Cetus Commander-Ninja | -4/Archives Commander-Ninja | -4/Hub_04(d) Trapper-Ninja | -3/Research Trapper-Scout | -3/Quarantine Hacker-Scout | -2/Research Hacker-Ninja | -2/Testing Alien-Scout | -2/Section 7 Alien-Ninja | -1/Access Commander-Ninja | -1/Command Resources | -11 -10 -10 -8 -8 -7 -7 -7 -7 -6 -6 -6 -6 -5 -5 -5 -5 -5 -4 -4 -4 -4 -4 -4 -4 -4 -3 -3 -2 -2 -2 -1 -1 ----------- Run | Yrd Mat Sub Mat Sto Fac Low Low Dat Pro Fac Low Zio Pro Fac Upp Upp Zhi Pro Fac Was Fac Ext Cet Arc Hub Res Qua Res Tes Sec Acc Com Matter Collected 7122 | 273 142 548 838 1073 544 66 8 . 161 662 35 62 . 84 . 10 120 106 110 50 127 187 52 48 92 184 174 250 30 446 59 581 Remotely . | . . . . . . . . . . . . . . . . . . . . . . . . . . . . . . . . . Salvage Created 11345 | 134 366 524 1189 1552 645 55 8 . 154 1043 . . . 297 . . 231 52 817 144 116 279 53 91 348 184 284 879 142 446 59 1253 Parts 548 | 8 16 31 84 84 59 1 1 . 6 36 . . . 11 . . 3 7 30 6 5 8 2 4 19 8 12 46 4 11 4 42 Haulers Intercepted 15 | . 1 . 2 5 . . . . . . . . . 1 . . . . 4 . . . . . 1 . . 1 . . . . Recyclers Shooed 7 | . 1 . 1 1 1 . . . . 1 . . . . . . . . . . . . . . . 1 . 1 . . . . Parts Field Recycled . | . . . . . . . . . . . . . . . . . . . . . . . . . . . . . . . . . Retrieved Matter . | . . . . . . . . . . . . . . . . . . . . . . . . . . . . . . . . . Parts Self-Destructed 54 | . . 27 . . . 3 . . 8 . . . 8 . . . . 8 . . . . . . . . . . . . . . Prevented 8 | . . . . . . . 1 . . . . . 2 . . . . 5 . . . . . . . . . . . . . . Parts Restored . | . . . . . . . . . . . . . . . . . . . . . . . . . . . . . . . . . Kills | -11 -10 -10 -8 -8 -7 -7 -7 -7 -6 -6 -6 -6 -5 -5 -5 -5 -5 -4 -4 -4 -4 -4 -4 -4 -4 -3 -3 -2 -2 -2 -1 -1 ------- Run | Yrd Mat Sub Mat Sto Fac Low Low Dat Pro Fac Low Zio Pro Fac Upp Upp Zhi Pro Fac Was Fac Ext Cet Arc Hub Res Qua Res Tes Sec Acc Com Combat Hostiles Destroyed 115 | . 4 14 20 20 7 3 . . 2 15 . . . . . . . 5 . . . 2 . 1 . . . 10 . . . 12 Melee 14 | . . . . . . . . . . . . . . . . . . 1 . . . 1 . . . . . 10 . . . 2 Guns 63 | . 4 7 20 20 7 1 . . 2 2 . . . . . . . . . . . . . . . . . . . . . . Cannons 17 | . . 7 . . . . . . . 2 . . . . . . . . . . . . . 1 . . . . . . . 7 AOE 19 | . . . . . . 2 . . . 10 . . . . . . . 4 . . . . . . . . . . . . . 3 Classes Destroyed 21 | 2 3 3 3 1 2 . 1 . . . . . . . . . . 1 . 1 . . . . . . . 1 . . . 3 Worker 16 | . . . 3 3 1 . . . . . . . . 1 . . . . 1 . . . . . 2 . . 1 . 2 1 1 Builder 14 | . . . 1 2 5 . . . . 3 . . . . . . . . . . . . . . 2 . 1 . . . . . Tunneler 3 | 2 . . . . . . . . . 1 . . . . . . . . . . . . . . . . . . . . . . Hauler 15 | . 1 . 2 5 . . . . . . . . . 1 . . . . 4 . . . . . 1 . . 1 . . . . Recycler 29 | 1 1 . 2 2 3 . . . . 3 . . . 1 . . . . 2 . 1 1 . . 1 1 2 2 1 3 . 2 Minesweeper 2 | . . . . . . . 1 . 1 . . . . . . . . . . . . . . . . . . . . . . . Operator 9 | . . . 1 . 1 . . . . . . . . 1 . . . . 2 . . . . 1 . 1 . 1 . . 1 . Drone 1 | . . . . . . . . . . . . . . . . . . 1 . . . . . . . . . . . . . . Watcher 12 | . 2 . 3 1 . . . . . 1 . . . 1 . . . . 2 . . . . . 1 . . . 1 . . . Swarmer 25 | . . 3 7 2 2 3 . . . 4 . . . . . . . 4 . . . . . . . . . . . . . . Cutter 8 | . . . . . . . . . . . . . . . . . . . . . . . . . . . . 8 . . . . Saboteur 1 | . . . . . . . . . . . . . . . . . . . . . . . . . . . . . . . . 1 Grunt 36 | . 4 . 8 13 1 . . . 2 5 . . . . . . . . . . . 2 . . . . . . . . . 1 Brawler 1 | . . . . . 1 . . . . . . . . . . . . . . . . . . . . . . . . . . . Duelist 1 | . . . . . . . . . . . . . . . . . . . . . . . . . . . . . . . . 1 Sentry 12 | . . 1 5 4 . . . . . 1 . . . . . . . . . . . . . 1 . . . . . . . . Demolisher 1 | . . . . . . . . . . . . . . . . . . . . . . . . . . . . . . . . 1 Hunter 3 | . . . . 1 . . . . . 2 . . . . . . . . . . . . . . . . . . . . . . Programmer 12 | . . . . . 3 . . . . 3 . . . . . . . . . . . . . . . . . 2 . . . 4 Combat Programmer 2 | . . . . . . . . . . . . . . . . . . . . . . . . . . . . . . . . 2 Subdweller 10 | . . 10 . . . . . . . . . . . . . . . . . . . . . . . . . . . . . . Martyr 2 | . . . . . . . . . . . . . . . . . . . . 2 . . . . . . . . . . . . Fireman 1 | . . . . . . . . . . . . . . . . . . . . . . . . . . . . . . . . 1 Best Kill Streak 8 | 2 3 3 7 8 6 3 1 . 3 5 . . . 2 . . . 4 3 . 1 2 . 2 4 1 1 6 2 3 2 3 Combat Bots Only 5 | . 2 3 5 5 3 3 . . 2 4 . . . . . . . 4 . . . 1 . 1 . . . 5 . . . 3 Max Kills in Single Turn 3 | 1 1 1 3 2 2 2 1 . 1 2 . . . 1 . . . 3 1 1 1 1 1 1 2 1 1 1 1 1 1 3 Gunslinging 1 | . . . . . 1 . . . . . . . . . . . . . . . . . . . . . . . . . . . Exploded 3 | . . . . . . 2 . . . 2 . . . . . . . 3 . . . . . . . . . . . . . 3 Melee 1 | . . . . . . . . . . . . . . . . . . 1 . . . 1 . . . . . 1 . . . 1 Uniques/NPCs Destroyed 2 | . . . . . . . . . . . . . . . . . . . . . . . 1 . . . . . . . . 1 A7 (-4/Cetus) MAIN.C Shell (-1/Command) Combat | -11 -10 -10 -8 -8 -7 -7 -7 -7 -6 -6 -6 -6 -5 -5 -5 -5 -5 -4 -4 -4 -4 -4 -4 -4 -4 -3 -3 -2 -2 -2 -1 -1 -------- Run | Yrd Mat Sub Mat Sto Fac Low Low Dat Pro Fac Low Zio Pro Fac Upp Upp Zhi Pro Fac Was Fac Ext Cet Arc Hub Res Qua Res Tes Sec Acc Com Hostile Shots Fired 1108 | . 29 74 52 60 30 9 . . 17 130 11 . 2 . 2 . . 22 17 . 16 11 . 1 6 10 . 58 21 23 2 505 Missed 499 | . 9 12 16 9 6 3 . . 3 52 10 . 1 . 1 . . 20 7 . 10 6 . . 3 6 . 31 13 13 1 267 Hits 609 | . 20 62 36 51 24 6 . . 14 78 1 . 1 . 1 . . 2 10 . 6 5 . 1 3 4 . 27 8 10 1 238 Melee 19 | . . . . . . . . . . . . . . . . . . . . . . . . . . . . 12 . 1 . 6 Projectile 590 | . 20 62 36 51 24 6 . . 14 78 1 . 1 . 1 . . 2 10 . 6 5 . 1 3 4 . 15 8 9 1 232 AOE 19 | . . . . . . . . . . . . . . . . . . . . . . . . . . . . 2 . . . 17 Critical Strikes 39 | . 2 1 . 3 1 . . . 1 4 . . . 1 . . . . . . . . . . . . . 7 1 1 . 17 Actively Blocked 2 | . . . . . . . . . . . . . . . . . . . . . . . . . . . . 2 . . . . Part Disruptions 15 | . . . . . . . . . . . . . . . . . . . . . . . . . . . . . 1 . . 14 Damage Taken 13796 | . 284 1121 351 714 361 82 . . 204 1307 10 . 23 22 30 . . 44 182 . 84 175 . 25 322 91 . 879 215 222 27 7021 Core 2006 | . 46 172 24 123 29 . . . 18 107 . . 23 . 30 . . 21 17 . . . . . . 23 . 81 24 . . 1268 Absorbed by Shields 394 | . . . . . . . . . . . . . . . . . . . . . . . . . . . . . . . . 394 Redirected to Shielding 171 | . . . . . . . . . . . . . . . . . . . . . . . . . . . . 171 . . . . Ignored by Resistances 1451 | . . 66 12 44 . . . . . 105 . . . . . . . . . . . . . . . . . . . 17 . 1207 Regen/Repaired (Parts) 3424 | . . . . . . . . . . . . 10 . . . . . . . 80 . . . . . . . 213 94 615 . 2412 Core Remaining (%) 80 | 100 . 12 . 73 . . . . 93 . . . 84 . . . . 94 . . . . . . 98 . 98 . . 72 . . Volleys Fired 562 | 3 39 66 50 72 34 3 1 . 8 74 1 . . 1 . . . 4 . . 17 11 6 5 5 14 . 29 18 31 1 69 Largest 4 | 2 2 2 4 4 4 2 2 . 3 2 1 . . 1 . . . 1 . . 1 1 1 1 1 1 . 1 2 1 1 1 Hottest 180 | 70 76 110 112 112 112 56 50 . 78 110 39 . . 39 . . . 39 . . 120 55 55 55 55 55 . 120 171 120 120 180 Shots Fired 1027 | 6 78 114 186 237 73 5 2 . 24 90 1 . . 1 . . . 4 . . 17 11 6 5 5 14 . 29 19 31 1 68 Gun 701 | 6 78 65 182 237 73 4 2 . 24 30 . . . . . . . . . . . . . . . . . . . . . . Cannon 283 | . . 32 4 . . . . . . 44 . . . . . . . . . . 17 11 6 5 5 14 . 29 19 31 1 65 Launcher 26 | . . . . . . 1 . . . 16 1 . . 1 . . . 4 . . . . . . . . . . . . . 3 Special 17 | . . 17 . . . . . . . . . . . . . . . . . . . . . . . . . . . . . . Kinetic 674 | 3 39 46 182 237 73 4 2 . 24 18 . . . . . . . . . . . 11 6 5 5 14 . . 1 . . 4 Thermal 281 | 3 39 68 4 . . . . . . 44 . . . . . . . . . . 17 . . . . . . 29 18 31 1 27 Explosive 17 | . . . . . . 1 . . . 10 1 . . 1 . . . 4 . . . . . . . . . . . . . . Electromagnetic 25 | . . . . . . . . . . 18 . . . . . . . . . . . . . . . . . . . . . 7 Slashing 30 | . . . . . . . . . . . . . . . . . . . . . . . . . . . . . . . . 30 Robot Hit Streak 37 | 4 12 32 9 9 8 1 1 . 6 8 . . . . . . . 6 . . . 4 2 4 . . . . 3 . . 37 Robot Miss Streak 10 | . 5 1 9 6 4 3 1 . 1 6 . . . . . . . . . . . 3 4 1 . . . . 1 . . 10 Penetration Max 1 | . . . 1 1 1 . . . . . . . . . . . . . . . . . . . . . . . . . . 1 Secondary Targets 7 | . . . 3 . 3 . . . 1 . . . . . . . . . . . . . . . . . . . . . . . Max Gunslinging Chain 1 | . . . 1 . 1 . . . 1 . . . . . . . . . . . . . . . . . . . . . . . Shots Hit Robots 569 | 4 45 77 65 108 35 1 1 . 14 48 . . . 8 . . 5 4 14 3 3 13 14 5 4 7 6 20 3 5 4 53 Core Hits 356 | 4 20 19 47 49 21 4 1 . 9 29 . . . 4 . . 2 6 8 2 . 3 1 4 10 2 2 11 2 2 2 92 Critical Kills 4 | . . . 2 2 . . . . . . . . . . . . . . . . . . . . . . . . . . . . Critical Parts Destroyed 13 | . 1 . . 6 1 . . . 1 . . . . . . . . . . . . 1 3 . . . . . . . . . Critical Strikes 33 | . 3 4 2 8 1 . . . 1 . . . . 1 . . . . 2 1 . 1 4 . . . . . . . . 5 Burn 5 | . 2 3 . . . . . . . . . . . . . . . . . . . . . . . . . . . . . . Destroy 14 | . 1 1 2 8 1 . . . 1 . . . . . . . . . . . . . . . . . . . . . . . Blast 1 | . . . . . . . . . . . . . . . . . . . . . . . 1 . . . . . . . . . Smash 4 | . . . . . . . . . . . . . . . . . . . . . . 1 3 . . . . . . . . . Sever 9 | . . . . . . . . . . . . . . 1 . . . . 2 1 . . . . . . . . . . . 5 Melee Attacks 380 | . . . 3 . 5 . . . 11 34 6 . . 15 . 4 5 4 42 3 19 13 12 1 12 49 21 55 8 14 9 35 Impact 15 | . . . . . . . . . . . . . . . . . . . . . . 3 12 . . . . . . . . . Slashing 365 | . . . 3 . 5 . . . 11 34 6 . . 15 . 4 5 4 42 3 19 10 . 1 12 49 21 55 8 14 9 35 Piercing . | . . . . . . . . . . . . . . . . . . . . . . . . . . . . . . . . . Sneak Attacks 69 | . . . . . 3 . . . . 5 . . . 3 . . . 1 9 3 2 2 12 1 4 3 4 7 2 5 1 2 Combat Hostiles 2 | . . . . . . . . . . . . . . . . . . 1 . . . 1 . . . . . . . . . . Follow-up Attacks . | . . . . . . . . . . . . . . . . . . . . . . . . . . . . . . . . . Damage Inflicted 30492 | 48 472 1404 1692 2534 1130 131 16 . 243 3212 . . . 722 . . 526 538 1409 321 303 724 799 241 1107 523 706 2527 412 993 508 7251 Guns 6844 | 48 472 677 1662 2534 838 16 16 . 243 338 . . . . . . . . . . . . . . . . . . . . . . Cannons 6549 | . . 727 30 . . . . . . 604 . . . . . . . . . . . 244 73 134 . . . . 50 . . 4687 Explosions 3628 | . . . . . . 115 . . . 1760 . . . . . . . 285 . . . . . . 696 . . . . . . 772 Melee 13471 | . . . . . 292 . . . . 510 . . . 722 . . 526 253 1409 321 303 480 726 107 411 523 706 2527 362 993 508 1792 Ramming . | . . . . . . . . . . . . . . . . . . . . . . . . . . . . . . . . . Kinetic 6708 | 9 207 515 1662 2534 838 16 16 . 243 171 . . . . . . . . . . . 244 73 134 . . . . . . . 46 Thermal 2631 | 39 265 889 30 . . . . . . 687 . . . . . . . . . . . . . . . . . . 50 . . 671 Explosive 1812 | . . . . . . 115 . . . 1412 . . . . . . . 285 . . . . . . . . . . . . . . Electromagnetic 1449 | . . . . . . . . . . 432 . . . . . . . . . . . . . . 696 . . . . . . 321 Impact 809 | . . . . . . . . . . . . . . . . . . . . . . 83 726 . . . . . . . . . Slashing 17083 | . . . . . 292 . . . . 510 . . . 722 . . 526 253 1409 321 303 397 . 107 411 523 706 2527 362 993 508 6213 Piercing . | . . . . . . . . . . . . . . . . . . . . . . . . . . . . . . . . . Highest Corruption 28 | . 2 2 . . . . . . . 4 4 4 . . . . . . . . 3 3 . . 4 . . . 2 2 . 28 Average Corruption 2 | . 2 2 . . . . . . . 2 4 4 . . . . . . . . 2 2 . . 2 . . . 1 2 . 8 Corruption Purged 3 | . . . . . . . . . . . . . . . . . . . . . . 3 . . . . . . . . . . Corruption Blocked . | . . . . . . . . . . . . . . . . . . . . . . . . . . . . . . . . . Effects 111 | . 3 50 . . . . . . . 17 3 2 . . . . . . . . 6 . . . 1 . . . 4 7 . 18 Message Errors 26 | . . 14 . . . . . . . 3 1 . . . . . . . . . 1 . . . . . . . 1 1 . 5 Matter Fused 27 | . 1 15 . . . . . . . 2 1 1 . . . . . . . . 2 . . . . . . . 1 1 . 3 Heat Flow Errors 15 | . 2 3 . . . . . . . 2 1 . . . . . . . . . 1 . . . . . . . 1 1 . 4 Energy Discharges 12 | . . 4 . . . . . . . 3 . . . . . . . . . . 1 . . . 1 . . . . 2 . 1 Data Loss (minor) 18 | . . 8 . . . . . . . 5 . 1 . . . . . . . . 1 . . . . . . . 1 1 . 1 Data Loss (major) 4 | . . 2 . . . . . . . 1 . . . . . . . . . . . . . . . . . . . 1 . . Misfires 3 | . . 2 . . . . . . . 1 . . . . . . . . . . . . . . . . . . . . . . Alerts 2 | . . 2 . . . . . . . . . . . . . . . . . . . . . . . . . . . . . . Misdirections 3 | . . . . . . . . . . . . . . . . . . . . . . . . . . . . . . . . 3 Weapon Failures 1 | . . . . . . . . . . . . . . . . . . . . . . . . . . . . . . . . 1 Overload Shots . | . . . . . . . . . . . . . . . . . . . . . . . . . . . . . . . . . Overflow Damage 3823 | . . . 10 . 207 . . . . 249 . . . 205 . . 255 140 218 . 198 86 169 . 79 165 269 506 . 475 72 520 Projectiles 71 | . . . 10 . . . . . . 33 . . . . . . . . . . . 22 . . . . . . . . . 6 Explosions 103 | . . . . . . . . . . 62 . . . . . . . . . . . . . . 6 . . . . . . 35 Melee 3649 | . . . . . 207 . . . . 154 . . . 205 . . 255 140 218 . 198 64 169 . 73 165 269 506 . 475 72 479 Knockbacks 3 | . . . . . . . . . . . . . . . . . . . . . . . 1 . . . . . . . . 2 Impact 1 | . . . . . . . . . . . . . . . . . . . . . . . 1 . . . . . . . . . Kinetic 1 | . . . . . . . . . . . . . . . . . . . . . . . . . . . . . . . . 1 Secondary 1 | . . . . . . . . . . . . . . . . . . . . . . . . . . . . . . . . 1 Self-Inflicted Damage 404 | . . . . . . . . . . 173 . . . . . . . . . . . . . . 186 . . . . . . 45 Shots 11 | . . . . . . . . . . 2 . . . . . . . . . . . . . . 2 . . . . . . 7 Rammed . | . . . . . . . . . . . . . . . . . . . . . . . . . . . . . . . . . Targets Rammed . | . . . . . . . . . . . . . . . . . . . . . . . . . . . . . . . . . Kicked . | . . . . . . . . . . . . . . . . . . . . . . . . . . . . . . . . . Crushed . | . . . . . . . . . . . . . . . . . . . . . . . . . . . . . . . . . Highest Temperature 360 | 60 273 284 142 245 65 . . . 93 358 266 265 70 4 4 4 3 3 66 39 330 192 152 123 75 50 . 270 360 174 26 253 Average Temperature 56 | 26 79 59 26 49 17 . . . 45 97 68 128 25 2 2 2 2 2 18 16 51 41 49 36 26 9 . 69 90 44 19 110 Received Heat Transfer 2020 | . 204 458 63 378 27 . . . 72 183 6 . . . . . . 12 21 . . 30 . . 9 . . 27 9 18 9 494 Thermoelectric Energy+ 290 | . . . . . . . . . . . . . . . . . . . . . . . . . . . . . . . . 290 Effects 17 | . . 2 . . . . . . . 2 . 4 . . . . . . . . 3 . . . . . . 1 . . . 5 Energy Bleed 4 | . . 1 . . . . . . . . . 1 . . . . . . . . . . . . . . . . . . . 2 Interference 13 | . . 1 . . . . . . . 2 . 3 . . . . . . . . 3 . . . . . . 1 . . . 3 Siege Activations . | . . . . . . . . . . . . . . . . . . . . . . . . . . . . . . . . . Martial Activations . | . . . . . . . . . . . . . . . . . . . . . . . . . . . . . . . . . Shielding Activations . | . . . . . . . . . . . . . . . . . . . . . . . . . . . . . . . . . Robots Disrupted . | . . . . . . . . . . . . . . . . . . . . . . . . . . . . . . . . . Combat Hostiles . | . . . . . . . . . . . . . . . . . . . . . . . . . . . . . . . . . Robots Corrupted 3 | . . . . . . . . . . 1 . . . . . . . . . . . 1 1 . . . . . . . . . Combat Hostiles 2 | . . . . . . . . . . 1 . . . . . . . . . . . 1 . . . . . . . . . . Parts Fried 7 | . . . . . . . . . . 6 . . . . . . . . . . . 1 . . . . . . . . . . Impact Corruptions 6 | . . . . . . . . . . . . . . . . . . . . . . 1 5 . . . . . . . . . Robots Melted 1 | . . . . . . . . . . 1 . . . . . . . . . . . . . . . . . . . . . . Combat Hostiles . | . . . . . . . . . . . . . . . . . . . . . . . . . . . . . . . . . Parts Melted 10 | . 2 6 . . . . . . . 2 . . . . . . . . . . . . . . . . . . . . . . Heat Transferred 4043 | 111 925 1591 37 . . . . . . 900 . . . . . . . . . . . . . . . . . . 37 . . 442 Parts Sabotaged . | . . . . . . . . . . . . . . . . . . . . . . . . . . . . . . . . . Parts Stolen . | . . . . . . . . . . . . . . . . . . . . . . . . . . . . . . . . . Parts Stripped . | . . . . . . . . . . . . . . . . . . . . . . . . . . . . . . . . . Power Chain Reactions 2 | . . . . . . . . . . 1 . . . . . . . . . . . . . . . . . . . . . 1 Alert | -11 -10 -10 -8 -8 -7 -7 -7 -7 -6 -6 -6 -6 -5 -5 -5 -5 -5 -4 -4 -4 -4 -4 -4 -4 -4 -3 -3 -2 -2 -2 -1 -1 ------- Run | Yrd Mat Sub Mat Sto Fac Low Low Dat Pro Fac Low Zio Pro Fac Upp Upp Zhi Pro Fac Was Fac Ext Cet Arc Hub Res Qua Res Tes Sec Acc Com Maximum Alert Level 5 | . . . 2 3 1 . . . . 1 . . . 2 . . . . 3 1 1 2 2 1 4 2 1 2 1 . . 5 Low Security (%) 48 | 100 100 . 27 58 50 . . . . 75 . . . 11 . . . . 35 46 58 58 . 27 50 . . 36 . 100 100 24 Level 1 30 | . . . 55 24 49 . . . . 24 . . . 80 . . . . 31 53 41 30 10 72 33 . 100 24 100 . . 6 Level 2 12 | . . . 16 13 . . . . . . . . . 8 . . . . 11 . . 10 89 . 4 100 . 39 . . . 4 Level 3 1 | . . . . 3 . . . . . . . . . . . . . . 21 . . . . . 4 . . . . . . 3 Level 4 . | . . . . . . . . . . . . . . . . . . . . . . . . . 7 . . . . . . 7 Level 5 1 | . . . . . . . . . . . . . . . . . . . . . . . . . . . . . . . . 20 High Security 3 | . . . . . . . . . . . . . . . . . . . . . . . . . . . . . . . . 34 Max Security . | . . . . . . . . . . . . . . . . . . . . . . . . . . . . . . . . . Peak Influence 3990 | 10 40 . 432 789 355 . . . . 278 . . . 411 . . . . 787 257 307 616 506 322 1297 680 355 605 350 155 43 3990 Initial 680 | . . . . 104 355 . . . . . . . . 52 . . . . 325 257 102 27 334 161 49 680 336 162 318 149 23 6 Average 339 | 1 4 . 268 189 210 . . . . 107 . . . 320 . . . . 369 205 169 204 445 233 263 624 324 338 310 78 28 1650 Influence Increases 16020 | 15 159 125 710 1133 327 70 5 . 45 744 45 . 211 555 . . 10 125 1252 . 497 1045 189 191 1557 212 82 795 204 220 58 5439 Destroy 0b10 Robot/C 5820 | . 80 80 400 600 180 60 . . 40 300 . . 100 220 . . . 80 300 . 260 420 80 80 320 . . 340 . . . 1880 Destroy 0b10 Robot/NC 630 | 15 20 . 60 70 50 . 5 . 5 40 . . . 30 . . 10 5 70 . 10 15 5 5 50 10 15 25 10 25 10 70 Destroy Leader 1018 | . 26 . 100 122 30 10 . . . 72 . . 20 46 . . . 10 82 . 30 42 . . 76 . . 62 2 . . 288 Allied During Kill 3412 | . . . . 162 20 . . . . . . . 91 149 . . . . 86 . 73 445 85 85 446 . . 53 . . . 1717 Trap Triggered on 0b10 50 | . . . . . . . . . . . . . . . . . . . . . . . . . . . . . . . . 50 Successful Hack 97 | . 18 . 14 4 . . . . . . . . . 12 . . . . 6 . . . 7 . . 18 . . 18 . . . Select Force Hacks 30 | . . . . 30 . . . . . . . . . . . . . . . . . . . . . . . . . . . . Disable Machine 960 | . . . 45 120 30 . . . . 120 . . . 15 . . . . 90 . 30 30 . 15 165 . 45 . 60 90 . 105 Destroy Structure 1828 | . . . 16 10 2 . . . . 122 . . . 38 . . . . 258 . 34 48 12 6 410 94 22 150 39 45 18 504 Advance Influence 300 | . . . . . . . . . . . . . . . . . . . 300 . . . . . . . . . . . . . Partial Spotted 645 | . . . . . 15 . . . . 15 . . . 45 . . . . 60 . 45 45 . . 60 60 . 30 75 45 30 120 Lose Combat Pursuer 1230 | . 15 45 75 15 . . . . . 75 45 . . . . . . 30 . . 15 . . . 30 30 . 135 . 15 . 705 Influence Decreases 11851 | 15 159 125 463 597 942 238 5 . 45 469 183 137 127 332 175 106 31 90 557 588 587 504 384 452 402 911 392 516 505 447 86 1281 Entered New Map 3637 | . . . . 143 428 63 . . . . 103 137 . 32 115 26 26 5 15 478 45 30 264 242 93 617 262 126 249 117 16 5 Time Decay 5691 | 15 149 125 313 310 374 175 5 . 45 419 80 . 110 160 40 80 5 85 362 110 262 374 120 190 140 294 130 310 246 310 70 283 Search Patrol Dispatched 100 | . . . . . . . . . . . . . . . . . . . 100 . . . . . . . . . . . . . Lost Part 380 | . 10 . . . 20 . . . . 50 . . . . . . . . 10 . . 10 . . . . . 20 10 20 . 230 Lost Ally 1789 | . . . . 40 120 . . . . . . . 17 140 20 . . . 70 . 280 90 . 20 169 . . 60 . . . 763 Purge Threat 254 | . . . 150 104 . . . . . . . . . . . . . . . . . . . . . . . . . . . . Squads Dispatched 75 | . 1 . 2 6 3 . . . . 9 . . . 2 . . . . 7 . 5 1 . . 4 5 . 8 3 5 2 12 Investigation 11 | . 1 . 1 2 . . . . . 4 . . . . . . . . . . 1 . . . . . . . 1 . 1 . Extermination 28 | . . . . . 3 . . . . 3 . . . 1 . . . . 3 . 3 . . . 1 4 . 2 2 3 1 2 Reinforcement 25 | . . . 1 2 . . . . . 2 . . . 1 . . . . 4 . 1 1 . . 3 1 . 5 . 2 . 2 Assault 9 | . . . . . . . . . . . . . . . . . . . . . . . . . . . . 1 . . . 8 Garrison 2 | . . . . 2 . . . . . . . . . . . . . . . . . . . . . . . . . . . . Intercept . | . . . . . . . . . . . . . . . . . . . . . . . . . . . . . . . . . Searches Triggered 1 | . . . . . . . . . . . . . . . . . . . 1 . . . . . . . . . . . . . Construction Impeded 3 | . . . . . . . . . . . . . . . . . . . 1 . 1 . . . 1 . . . . . . . Haulers Reinforced 2 | . . . . . . . . . . . . . . 1 . . . . 1 . . . . . . . . . . . . . Active Scanning Responses . | . . . . . . . . . . . . . . . . . . . . . . . . . . . . . . . . . Cargo Convoy Interrupts 1 | . . . . . 1 . . . . . . . . . . . . . . . . . . . . . . . . . . . Stealth | -11 -10 -10 -8 -8 -7 -7 -7 -7 -6 -6 -6 -6 -5 -5 -5 -5 -5 -4 -4 -4 -4 -4 -4 -4 -4 -3 -3 -2 -2 -2 -1 -1 --------- Run | Yrd Mat Sub Mat Sto Fac Low Low Dat Pro Fac Low Zio Pro Fac Upp Upp Zhi Pro Fac Was Fac Ext Cet Arc Hub Res Qua Res Tes Sec Acc Com Distress Signals 37 | . . . 3 3 . . . . . 1 . . . 3 . . . 2 3 . 3 1 1 . 4 2 . 2 1 1 . 7 Communications Jammed . | . . . . . . . . . . . . . . . . . . . . . . . . . . . . . . . . . Distress Signals . | . . . . . . . . . . . . . . . . . . . . . . . . . . . . . . . . . Times Spotted 564 | . 7 16 32 31 12 3 . . 5 27 6 . 4 10 6 . . 18 29 . 29 19 5 3 15 21 6 43 9 18 3 187 Peak Tracking Total 38 | . 2 3 8 5 3 3 . . 3 5 3 . 3 4 9 . . 6 8 . 8 4 5 2 10 9 3 18 3 7 2 38 Tactical Retreats 59 | . 1 3 3 1 . . . . . 5 2 . . . . . . 3 2 . 4 . . . 2 5 . 5 2 2 1 18 ECM-based Alert Blocks 90 | . . . 1 . . . . . . 7 . . . . . . . 11 4 . 12 . . . . 10 . 19 4 7 1 14 Traps | -11 -10 -10 -8 -8 -7 -7 -7 -7 -6 -6 -6 -6 -5 -5 -5 -5 -5 -4 -4 -4 -4 -4 -4 -4 -4 -3 -3 -2 -2 -2 -1 -1 ------- Run | Yrd Mat Sub Mat Sto Fac Low Low Dat Pro Fac Low Zio Pro Fac Upp Upp Zhi Pro Fac Was Fac Ext Cet Arc Hub Res Qua Res Tes Sec Acc Com Traps Triggered 19 | . 2 . 1 1 1 . . . . 3 . . . . . . . . 1 . 6 . . . 1 . . . . 1 1 1 Indirectly . | . . . . . . . . . . . . . . . . . . . . . . . . . . . . . . . . . Trap Hack Attempts . | . . . . . . . . . . . . . . . . . . . . . . . . . . . . . . . . . Triggered . | . . . . . . . . . . . . . . . . . . . . . . . . . . . . . . . . . Disarmed . | . . . . . . . . . . . . . . . . . . . . . . . . . . . . . . . . . Reprogrammed . | . . . . . . . . . . . . . . . . . . . . . . . . . . . . . . . . . Reused 5 | . . . . . . . . . . . . . . . . . . . . . . . . . . . . . . . . 5 Traps Extracted 1 | . . . . . . . . . . . . . . . . . . . . . . . . . . . . . . . . 1 Installed 7 | . . . . . . . . . . . . . . . . . . . . . . . . . . . . . . . . 7 Triggered 5 | . . . . . . . . . . . . . . . . . . . . . . . . . . . . . . . . 5 Most Traps Carried 9 | . . . . . . . . . 5 5 5 5 5 5 5 5 5 5 5 5 7 9 9 9 9 9 9 9 9 9 9 9 Machines | -11 -10 -10 -8 -8 -7 -7 -7 -7 -6 -6 -6 -6 -5 -5 -5 -5 -5 -4 -4 -4 -4 -4 -4 -4 -4 -3 -3 -2 -2 -2 -1 -1 ---------- Run | Yrd Mat Sub Mat Sto Fac Low Low Dat Pro Fac Low Zio Pro Fac Upp Upp Zhi Pro Fac Was Fac Ext Cet Arc Hub Res Qua Res Tes Sec Acc Com Machines Disabled 66 | . . 1 3 8 2 . . . . 8 . . . 1 . . . . 6 . 2 3 . 1 11 . 3 . 4 6 . 7 Max in Single Turn 8 | . . 1 1 1 1 . . . . 3 . . . . . . . . 1 . 1 1 . . 8 . 1 . 1 1 . 1 Garrison Access 3 | . . . . . 1 . . . . . . . . . . . . . . . . . . . . . 1 1 . . . . Network Hub 2 | . . . . . . . . . . . . . . . . . . . . . . . . . 2 . . . . . . . Machines Repaired . | . . . . . . . . . . . . . . . . . . . . . . . . . . . . . . . . . Machines Dismantled . | . . . . . . . . . . . . . . . . . . . . . . . . . . . . . . . . . Machines Sabotaged . | . . . . . . . . . . . . . . . . . . . . . . . . . . . . . . . . . Overloaded Fab Kills . | . . . . . . . . . . . . . . . . . . . . . . . . . . . . . . . . . Hacking | -11 -10 -10 -8 -8 -7 -7 -7 -7 -6 -6 -6 -6 -5 -5 -5 -5 -5 -4 -4 -4 -4 -4 -4 -4 -4 -3 -3 -2 -2 -2 -1 -1 --------- Run | Yrd Mat Sub Mat Sto Fac Low Low Dat Pro Fac Low Zio Pro Fac Upp Upp Zhi Pro Fac Was Fac Ext Cet Arc Hub Res Qua Res Tes Sec Acc Com Machines Accessed 71 | . 4 3 7 10 6 1 2 4 . 7 . . . 2 . . 4 . 3 . . 1 3 . . 3 3 2 2 3 . 1 Terminals 34 | . 4 . 6 8 4 . . . . 4 . . . . . . . . . . . . 3 . . 1 . . . 3 . 1 Fabricators 1 | . . . . . . . . . . . . . . . . . . . . . . . . . . 1 . . . . . . Repair Stations 3 | . . . . . . . . . . . . . . 1 . . . . . . . . . . . 1 . . 1 . . . Recycling Units 3 | . . . . 1 . . . . . 1 . . . . . . . . . . . 1 . . . . . . . . . . Scanalyzers 9 | . . . 1 . 1 . . . . 1 . . . 1 . . . . 2 . . . . . . . 2 1 . . . . Garrison Access 7 | . . . . 1 1 . . . . 1 . . . . . . . . 1 . . . . . . . 1 1 1 . . . Total Hacks 175 | . 7 11 17 17 10 1 4 31 . 9 . . . 5 . . 17 . 7 . . 1 8 . . 10 5 2 4 3 . 6 Successful 111 | . 3 11 10 7 2 1 4 31 . 2 . . . 1 . . 17 . 4 . . 1 3 . . 2 4 2 2 3 . 1 Failed 63 | . 4 . 7 10 8 . . . . 7 . . . 4 . . . . 3 . . . 5 . . 8 . . 2 . . 5 Catastrophic 19 | . . . 3 5 3 . . . . 4 . . . . . . . . . . . . . . . 2 . . 2 . . . Database Lockouts 1 | . . . . . . . . . . . . . . . . . . . . . . . . . . . 1 . . . . . Manual 257 | . 3 . 8 1 1 . . . . 3 . . . 10 . . . . 40 . 32 10 1 . 19 37 20 21 9 14 11 17 Terminals 67 | . 7 . 14 13 7 . . . . 6 . . . . . . . . . . . . 8 . . 3 . . . 3 . 6 Fabricators 6 | . . . . . . . . . . . . . . . . . . . . . . . . . . 6 . . . . . . Repair Stations 7 | . . . . . . . . . . . . . . 3 . . . . . . . . . . . 1 . . 3 . . . Recycling Units 4 | . . . . 2 . . . . . 1 . . . . . . . . . . . 1 . . . . . . . . . . Scanalyzers 17 | . . . 3 . 1 . . . . 1 . . . 2 . . . . 5 . . . . . . . 4 1 . . . . Garrison Access 10 | . . . . 2 2 . . . . 1 . . . . . . . . 2 . . . . . . . 1 1 1 . . . Terminal Hacks 87 | . 3 11 7 5 . 1 4 31 . . . . . . . . 17 . . . . . 3 . . 1 . . . 3 . 1 Record 30 | . . 9 . . . . 3 11 . . . . . . . . 5 . . . . . 2 . . . . . . . . . Part Schematic 16 | . . . . . . . . 12 . . . . . . . . 4 . . . . . . . . . . . . . . . Robot Schematic 5 | . . . . . . . . 5 . . . . . . . . . . . . . . . . . . . . . . . . Robot Analysis 4 | . . . . . . . . . . . . . . . . . 4 . . . . . . . . . . . . . . . Prototype ID Bank 9 | . 1 . 1 . . . . 3 . . . . . . . . 4 . . . . . . . . . . . . . . . Open Door 10 | . . 1 . 2 . 1 1 . . . . . . . . . . . . . . . 1 . . 1 . . . 3 . . Branch Access Points 1 | . . . 1 . . . . . . . . . . . . . . . . . . . . . . . . . . . . . Alert Level 2 | . . . 1 1 . . . . . . . . . . . . . . . . . . . . . . . . . . . . Unreport Threat 2 | . . . 1 1 . . . . . . . . . . . . . . . . . . . . . . . . . . . . Locate Traps 1 | . . . . 1 . . . . . . . . . . . . . . . . . . . . . . . . . . . . Hauler Manifests 2 | . 1 . 1 . . . . . . . . . . . . . . . . . . . . . . . . . . . . . Registered Components 2 | . 1 . 1 . . . . . . . . . . . . . . . . . . . . . . . . . . . . . Zone Layout 1 | . . . 1 . . . . . . . . . . . . . . . . . . . . . . . . . . . . . Proto ID Catalog 1 | . . 1 . . . . . . . . . . . . . . . . . . . . . . . . . . . . . . Disengage Seal 1 | . . . . . . . . . . . . . . . . . . . . . . . . . . . . . . . . 1 Fabricator Hacks . | . . . . . . . . . . . . . . . . . . . . . . . . . . . . . . . . . Repair Station Hacks 2 | . . . . . . . . . . . . . . . . . . . . . . . . . . 1 . . 1 . . . Refit 2 | . . . . . . . . . . . . . . . . . . . . . . . . . . 1 . . 1 . . . Recycling Unit Hacks 3 | . . . . 1 . . . . . 1 . . . . . . . . . . . 1 . . . . . . . . . . Report Inventory 3 | . . . . 1 . . . . . 1 . . . . . . . . . . . 1 . . . . . . . . . . Scanalyzer 14 | . . . 3 . 1 . . . . 1 . . . 1 . . . . 4 . . . . . . . 3 1 . . . . Insert Component 4 | . . . 2 . . . . . . . . . . . . . . . 2 . . . . . . . . . . . . . Analyze 1 | . . . . . . . . . . . . . . . . . . . 1 . . . . . . . . . . . . . Retrieve Study 9 | . . . 1 . 1 . . . . 1 . . . 1 . . . . 1 . . . . . . . 3 1 . . . . Garrison Access Hacks 3 | . . . . . 1 . . . . . . . . . . . . . . . . . . . . . 1 1 . . . . Seal Access 3 | . . . . . 1 . . . . . . . . . . . . . . . . . . . . . 1 1 . . . . Unauthorized Hacks 2 | . . . . 1 . . . . . . . . . . . . . . . . . . . . . . . . 1 . . . Terminals . | . . . . . . . . . . . . . . . . . . . . . . . . . . . . . . . . . Fabricators . | . . . . . . . . . . . . . . . . . . . . . . . . . . . . . . . . . Repair Stations 1 | . . . . . . . . . . . . . . . . . . . . . . . . . . . . . 1 . . . Patch 1 | . . . . . . . . . . . . . . . . . . . . . . . . . . . . . 1 . . . Recycling Units 1 | . . . . 1 . . . . . . . . . . . . . . . . . . . . . . . . . . . . Tunnel 1 | . . . . 1 . . . . . . . . . . . . . . . . . . . . . . . . . . . . Scanalyzers . | . . . . . . . . . . . . . . . . . . . . . . . . . . . . . . . . . Garrison Access . | . . . . . . . . . . . . . . . . . . . . . . . . . . . . . . . . . Data Cores Recovered 3 | . . . . . 1 . . . . . . . . . . . . . 1 . . . . . . . . . . . 1 . Used . | . . . . . . . . . . . . . . . . . . . . . . . . . . . . . . . . . Hacking Detections 39 | . 3 . 6 6 6 . . . . 5 . . . 2 . . . . 2 . . 1 2 . . 2 1 . 2 . . 1 Full Trace Events 6 | . . . 2 3 . . . . . 1 . . . . . . . . . . . . . . . . . . . . . . Feedback Events . | . . . . . . . . . . . . . . . . . . . . . . . . . . . . . . . . . Feedback Blocked . | . . . . . . . . . . . . . . . . . . . . . . . . . . . . . . . . . Robot Schematics Acquired 26 | . . . . . . . . 5 . . . . . . . . . . . . 4 . . . . 9 3 . . . . 5 Robots Built . | . . . . . . . . . . . . . . . . . . . . . . . . . . . . . . . . . Authchips . | . . . . . . . . . . . . . . . . . . . . . . . . . . . . . . . . . Time . | . . . . . . . . . . . . . . . . . . . . . . . . . . . . . . . . . Total Robot Build Rating . | . . . . . . . . . . . . . . . . . . . . . . . . . . . . . . . . . Part Schematics Acquired 180 | . . . . . . . . 12 . . . . . . . . 4 . 51 . 11 . . . 11 37 9 12 . 9 . 24 Parts Built . | . . . . . . . . . . . . . . . . . . . . . . . . . . . . . . . . . Authchips . | . . . . . . . . . . . . . . . . . . . . . . . . . . . . . . . . . Time . | . . . . . . . . . . . . . . . . . . . . . . . . . . . . . . . . . Total Part Build Rating . | . . . . . . . . . . . . . . . . . . . . . . . . . . . . . . . . . Part Studies Acquired 9 | . . . 1 . 1 . . . . 1 . . . 1 . . . . 1 . . . . . . . 3 1 . . . . Parts Repaired . | . . . . . . . . . . . . . . . . . . . . . . . . . . . . . . . . . Time . | . . . . . . . . . . . . . . . . . . . . . . . . . . . . . . . . . Parts Recycled . | . . . . . . . . . . . . . . . . . . . . . . . . . . . . . . . . . Recycled Matter . | . . . . . . . . . . . . . . . . . . . . . . . . . . . . . . . . . Retrieved Matter . | . . . . . . . . . . . . . . . . . . . . . . . . . . . . . . . . . Retrieved Components . | . . . . . . . . . . . . . . . . . . . . . . . . . . . . . . . . . Parts Scanalyzed 1 | . . . . . . . . . . . . . . . . . . . 1 . . . . . . . . . . . . . Part Schematics Acquired 1 | . . . . . . . . . . . . . . . . . . . 1 . . . . . . . . . . . . . Parts Damaged . | . . . . . . . . . . . . . . . . . . . . . . . . . . . . . . . . . Bothacking | -11 -10 -10 -8 -8 -7 -7 -7 -7 -6 -6 -6 -6 -5 -5 -5 -5 -5 -4 -4 -4 -4 -4 -4 -4 -4 -3 -3 -2 -2 -2 -1 -1 ------------ Run | Yrd Mat Sub Mat Sto Fac Low Low Dat Pro Fac Low Zio Pro Fac Upp Upp Zhi Pro Fac Was Fac Ext Cet Arc Hub Res Qua Res Tes Sec Acc Com Used RIF Installer . | . . . . . . . . . . . . . . . . . . . . . . . . . . . . . . . . . Robots Hacked . | . . . . . . . . . . . . . . . . . . . . . . . . . . . . . . . . . Non-combat . | . . . . . . . . . . . . . . . . . . . . . . . . . . . . . . . . . Combat . | . . . . . . . . . . . . . . . . . . . . . . . . . . . . . . . . . Robot Hacks Applied . | . . . . . . . . . . . . . . . . . . . . . . . . . . . . . . . . . Relay Couplers Released . | . . . . . . . . . . . . . . . . . . . . . . . . . . . . . . . . . Fabnet Peak Effective % . | . . . . . . . . . . . . . . . . . . . . . . . . . . . . . . . . . Robots Rewired 8 | . . . . . . . . . . . . . . . . . . . . . . 7 . . . . . . . . . 1 Allies Hacked 4 | . . . . . . . . . . . . . . . . . . . . . 1 . . . . . . . . . . 3 Hacks Repelled . | . . . . . . . . . . . . . . . . . . . . . . . . . . . . . . . . . Allies | -11 -10 -10 -8 -8 -7 -7 -7 -7 -6 -6 -6 -6 -5 -5 -5 -5 -5 -4 -4 -4 -4 -4 -4 -4 -4 -3 -3 -2 -2 -2 -1 -1 -------- Run | Yrd Mat Sub Mat Sto Fac Low Low Dat Pro Fac Low Zio Pro Fac Upp Upp Zhi Pro Fac Was Fac Ext Cet Arc Hub Res Qua Res Tes Sec Acc Com Total Allies 136 | . . . . 10 . . 2 . . . . 10 . 3 . . . . 5 20 10 21 5 . 3 . . 3 . . 1 43 Largest Group 22 | . . . . 10 7 . 2 . . . . 10 10 8 3 . . . 4 20 18 21 19 18 20 . . 2 . . 1 22 Highest-Rated Group 2670 | . . . . 173 125 . 51 . . . . 311 311 267 84 . . . 300 806 706 1127 1349 1197 1392 . . 269 . . 269 2670 Highest-Rated Ally 269 | . . . . 29 29 . 31 . . . . 41 41 41 28 . . . 103 50 103 159 159 103 103 . . 269 . . 269 269 Zionite Dispatches 17 | . . . . . . . . . . . . . . 1 . . . . 3 . 5 3 . . 2 . . 2 . . 1 . Heavy 5 | . . . . . . . . . . . . . . . . . . . 1 . 1 1 . . 1 . . 1 . . . . Fire 3 | . . . . . . . . . . . . . . 1 . . . . . . 2 . . . . . . . . . . . Demo 1 | . . . . . . . . . . . . . . . . . . . 1 . . . . . . . . . . . . . Experimental 2 | . . . . . . . . . . . . . . . . . . . . . . . . . . . . 1 . . 1 . Kinetic Resupply 1 | . . . . . . . . . . . . . . . . . . . . . . 1 . . . . . . . . . . Explosive Resupply 1 | . . . . . . . . . . . . . . . . . . . 1 . . . . . . . . . . . . . Trap Resupply 3 | . . . . . . . . . . . . . . . . . . . . . 2 1 . . . . . . . . . . Hacking Resupply 1 | . . . . . . . . . . . . . . . . . . . . . . . . . 1 . . . . . . . Total Orders 18 | . . . . 4 . . . . . . . . . . . . . . . . 5 4 . . 2 . . . . 1 . 2 STAY 7 | . . . . . . . . . . . . . . . . . . . . . 3 2 . . 1 . . . . . . 1 FOLLOW 1 | . . . . . . . . . . . . . . . . . . . . . . . . . . . . . . . . 1 DROP 5 | . . . . . . . . . . . . . . . . . . . . . 2 2 . . 1 . . . . . . . EXPLORE 5 | . . . . 4 . . . . . . . . . . . . . . . . . . . . . . . . . 1 . . Ally Attacks 940 | . . . . 72 26 . . . . . . . 50 51 . . . . 25 . 117 103 26 16 97 . . 22 . . . 335 Total Damage 46363 | . . . . 941 376 . . . . . . . 980 1019 . . . . 2617 . 2653 4750 1021 649 3791 . . 1694 . . . 25872 Kills 220 | . . . . 12 2 . . . . . . . 5 13 . . . . 19 . 15 24 5 3 19 . . 7 . . . 96 Allies Corrupted 10 | . . . . . . . . . . . . . . . . . . . . . 1 . 1 . 3 . . . . . . 5 Allies Melted 4 | . . . . . . . . . . . . . . . . . . . . . 1 1 . . . . . 1 . . . 1 Intel | -11 -10 -10 -8 -8 -7 -7 -7 -7 -6 -6 -6 -6 -5 -5 -5 -5 -5 -4 -4 -4 -4 -4 -4 -4 -4 -3 -3 -2 -2 -2 -1 -1 ------- Run | Yrd Mat Sub Mat Sto Fac Low Low Dat Pro Fac Low Zio Pro Fac Upp Upp Zhi Pro Fac Was Fac Ext Cet Arc Hub Res Qua Res Tes Sec Acc Com Active Infowar (turns) 18643 | 29 963 2369 668 881 864 712 780 71 512 1184 174 427 414 320 84 176 76 323 820 223 574 984 249 383 281 648 265 689 523 680 143 1154 Optics 9518 | . . . . . . . . . . . 112 413 414 320 84 176 76 323 820 223 558 984 249 383 281 648 265 689 523 680 143 1154 Sensors 12133 | . . . . . . 691 780 71 512 1184 174 427 414 320 84 176 76 323 818 223 574 944 . 344 281 648 265 689 505 680 143 787 Seismic 5795 | 29 963 2369 668 881 864 21 . . . . . . . . . . . . . . . . . . . . . . . . . . Cloaking 66 | . . . . . . . . . . . . . . . . . . . . 44 1 . . 1 . 16 4 . . . . . ECM 2693 | . . . 18 . . . . . . 224 . . . 16 . . 3 306 350 . 140 . . 1 . 78 . 283 371 235 143 525 Robot Analysis Total 4 | . . . . . . . . . . . . . . . . . 4 . . . . . . . . . . . . . . . Derelict Logs Recovered 11 | . . 1 . . . 1 1 . 1 . 1 1 2 . . 1 . 2 . . . . . . . . . . . . . . Drone Launches 5 | . . . . 4 . . . . . . . . . . . . . . . . . . . . . . . . . 1 . . Drone Recoveries 3 | . . . . 2 . . . . . . . . . . . . . . . . . . . . . . . . . 1 . . Zionite Intel Received 55 | . . . . . . . . . . . . . . 2 . . . . 9 . 6 1 . . 3 10 6 5 2 4 2 5 Main Access 1 | . . . . . . . . . . . . . . . . . . . . . . . . . . . . . . 1 . . Branch Access 3 | . . . . . . . . . . . . . . 1 . . . . . . 1 . . . . . . . . . 1 . Emergency Access 5 | . . . . . . . . . . . . . . . . . . . 1 . . . . . 1 . 1 . . 1 1 . Guard Positions 1 | . . . . . . . . . . . . . . . . . . . 1 . . . . . . . . . . . . . Component Stockpiles 4 | . . . . . . . . . . . . . . . . . . . . . 1 1 . . . . 1 1 . . . . Prototype Stockpiles 6 | . . . . . . . . . . . . . . 1 . . . . 1 . 1 . . . . 1 . 1 1 . . . Component Schematics 6 | . . . . . . . . . . . . . . . . . . . 3 . . . . . . 2 . . . . . 1 Prototype Schematics 8 | . . . . . . . . . . . . . . . . . . . 1 . 1 . . . 1 1 1 1 . 1 . 1 Unaware Schematics 5 | . . . . . . . . . . . . . . . . . . . . . 1 . . . . 2 1 . . . . 1 Unaware Analyses 2 | . . . . . . . . . . . . . . . . . . . . . . . . . . 1 1 . . . . . Trap Installations 2 | . . . . . . . . . . . . . . . . . . . 1 . . . . . . 1 . . . . . . Active Terminals 6 | . . . . . . . . . . . . . . . . . . . . . 1 . . . 1 . . 1 1 1 . 1 Active Garrisons 3 | . . . . . . . . . . . . . . . . . . . . . . . . . . 1 1 1 . . . . Depthwide Sectors/0 1 | . . . . . . . . . . . . . . . . . . . . . . . . . . . . . . . . 1 Depthwide Sectors/-1 2 | . . . . . . . . . . . . . . . . . . . 1 . . . . . . 1 . . . . . . Exploration | -11 -10 -10 -8 -8 -7 -7 -7 -7 -6 -6 -6 -6 -5 -5 -5 -5 -5 -4 -4 -4 -4 -4 -4 -4 -4 -3 -3 -2 -2 -2 -1 -1 ------------- Run | Yrd Mat Sub Mat Sto Fac Low Low Dat Pro Fac Low Zio Pro Fac Upp Upp Zhi Pro Fac Was Fac Ext Cet Arc Hub Res Qua Res Tes Sec Acc Com Turns Passed 20386 | 116 1077 3305 801 995 866 712 780 71 557 1476 174 427 414 320 84 176 76 323 820 223 574 984 249 383 281 648 265 689 523 680 143 1174 Spaces Moved 23968 | 57 520 1532 543 510 759 768 804 79 484 1270 470 763 527 726 294 408 154 562 1857 215 1336 888 194 56 379 1665 588 1200 840 1380 261 1879 Core 12 | 7 . . . . . . . . . . . . . . . . . . . . . 5 . . . . . . . . . . Treads 1324 | 50 483 791 . . . . . . . . . . . . . . . . . . . . . . . . . . . . . . Legs . | . . . . . . . . . . . . . . . . . . . . . . . . . . . . . . . . . Wheels 5898 | . 37 741 543 510 759 768 804 79 484 1173 . . . . . . . . . . . . . . . . . . . . . . Hover . | . . . . . . . . . . . . . . . . . . . . . . . . . . . . . . . . . Flight 16734 | . . . . . . . . . . 97 470 763 527 726 294 408 154 562 1857 215 1336 883 194 56 379 1665 588 1200 840 1380 261 1879 Fastest Speed 11 | 50 140 140 90 90 85 90 90 90 90 20 23 23 23 23 23 23 20 23 20 20 20 11 20 20 11 12 25 17 17 17 17 23 Average Speed 51 | 146 159 193 90 90 89 90 90 90 90 84 23 23 23 23 23 23 22 23 21 20 20 21 20 20 19 22 26 24 23 23 23 27 Slowest Speed 250 | 160 240 240 90 95 90 90 90 90 90 90 23 23 23 23 23 23 23 23 23 20 20 250 20 20 20 28 31 27 26 99 99 102 Overloaded Moves 126 | . . . . . . . . . . . . . . . . . . . . . . 1 . . 7 2 . 31 18 66 1 . Propulsion Burnouts . | . . . . . . . . . . . . . . . . . . . . . . . . . . . . . . . . . Robots Hopped 81 | . . . . . . . . . . . . . . 2 . . . 1 6 1 7 17 . . 2 3 5 15 3 4 1 14 Potential Cave-ins 15 | . . . . . . . . . . 2 . . . . . . . . . . 4 . . . . . . 7 . . . 2 Cave-ins Triggered . | . . . . . . . . . . . . . . . . . . . . . . . . . . . . . . . . . Teleports 2 | . . . . . . . . . . . . . . . . . . . . . . . . . . . . . . 2 . . Exploration Rate (%) 59 | 4 83 74 48 94 23 78 92 70 66 32 58 89 83 23 51 64 60 69 62 89 42 84 79 77 41 49 74 34 60 73 7 46 Regions Visited 32 Branch Regions 21 Pre-discovered Areas 16 | . . . . 1 . 1 . 1 . . 1 . . . . . 3 1 4 . . . . . . 2 . . . . . 2 Known Exits Taken 26 | . . . 1 . 1 1 1 1 1 1 1 1 1 1 1 1 1 1 . . 1 1 1 1 1 1 1 1 1 1 1 . Unknown Exits Taken 4 | 1 1 1 . 1 . . . . . . . . . . . . . . . . . . . . . . . . . . . . Scrap Searched 35 | . . 9 . . . 4 1 . 2 . 4 4 2 . 2 4 . 3 . . . . . . . . . . . . . . Spaces Dug 289 | . . . 5 . 4 . . . 11 41 6 . . 6 . 4 . . 24 . 21 4 . . 7 47 11 40 14 15 6 23 Terrain Destroyed 892 | . . 1 9 6 5 6 . . 11 140 23 . . 21 . 4 . 69 24 . 30 9 4 1 324 51 11 55 20 16 6 46 Melee 209 | . . . 3 . 2 . . . 11 26 6 . . 6 . 4 . . 24 . 13 4 . . 7 40 11 26 4 6 5 11 Projectile 156 | . . 1 2 4 3 1 . . . 24 . . . . . . . . . . 17 5 4 1 . 11 . 29 16 10 1 27 AOE 521 | . . . . . . 5 . . . 90 17 . . 15 . . . 69 . . . . . . 317 . . . . . . 8 Terrain Rammed . | . . . . . . . . . . . . . . . . . . . . . . . . . . . . . . . . . Walls Destroyed . | . . . . . . . . . . . . . . . . . . . . . . . . . . . . . . . . . Machines Disabled . | . . . . . . . . . . . . . . . . . . . . . . . . . . . . . . . . . Actions | -11 -10 -10 -8 -8 -7 -7 -7 -7 -6 -6 -6 -6 -5 -5 -5 -5 -5 -4 -4 -4 -4 -4 -4 -4 -4 -3 -3 -2 -2 -2 -1 -1 --------- Run | Yrd Mat Sub Mat Sto Fac Low Low Dat Pro Fac Low Zio Pro Fac Upp Upp Zhi Pro Fac Was Fac Ext Cet Arc Hub Res Qua Res Tes Sec Acc Com Total 30348 | 81 703 1717 734 888 879 782 859 78 582 1541 522 1013 819 844 310 481 183 741 2188 387 1580 1629 381 421 559 1847 650 1440 1125 1671 322 2391 Wait 4658 | 11 103 60 75 290 49 6 55 . 65 96 36 247 293 93 15 70 . 163 262 161 171 655 169 351 164 99 17 124 237 155 43 323 Move 23788 | 56 519 1531 542 509 758 767 803 78 483 1269 469 762 526 721 293 407 153 559 1847 212 1321 857 193 55 374 1658 578 1172 833 1371 258 1854 Hop 65 | . . . . . . . . . . . . . . 2 . . . 1 4 1 7 12 . . 2 3 4 11 3 3 1 11 Pick Up 133 | 4 15 16 19 2 7 1 . . 4 7 . . . . . . 1 . 12 1 4 2 . . . 1 3 6 5 15 2 6 Fast Attach 161 | 6 3 2 8 8 5 . . . 1 4 4 2 . 6 . . 12 2 8 3 3 7 . 3 . 8 10 10 4 25 1 16 Attach 81 | 1 1 2 5 . 4 . . . 2 13 1 . . 1 . . . 2 . 1 2 1 . . . . 3 10 5 12 1 14 Detach 35 | . 1 1 3 . 1 . . . . 1 1 . . 1 . . . 2 . 1 1 . . . . . 3 4 . 2 . 13 Swap 126 | . 9 27 6 . 5 4 . . 4 24 . . . . 1 . . 2 2 1 6 3 1 3 1 5 . 6 2 2 2 10 Drop 234 | . 13 12 23 7 11 1 . . 4 17 4 2 . 4 1 . 12 2 11 3 8 7 . 3 1 10 11 12 10 30 4 11 Fire 562 | 3 39 66 50 72 34 3 1 . 8 74 1 . . 1 . . . 4 . . 17 11 6 5 5 14 . 29 18 31 1 69 Melee 380 | . . . 3 . 5 . . . 11 34 6 . . 15 . 4 5 4 42 3 19 13 12 1 12 49 21 55 8 14 9 35 Ram . | . . . . . . . . . . . . . . . . . . . . . . . . . . . . . . . . . Kick . | . . . . . . . . . . . . . . . . . . . . . . . . . . . . . . . . . Crush . | . . . . . . . . . . . . . . . . . . . . . . . . . . . . . . . . . Escape Stasis 65 | . . . . . . . . . . . . . . . . . . . . . 21 17 . . . . . 1 . 11 . 15 Rewire 50 | . . . . . . . . . . . . . . . . . . . . . . 44 . . . . . . . . . 6 Trap 8 | . . . . . . . . . . . . . . . . . . . . . . . . . . . . . . . . 8 Miscellaneous 2 | . . . . . . . . . . 2 . . . . . . . . . . . . . . . . . . . . . . Route ------- -11/Scrapyard -10/Materials (discovered 4 exits: [*Mat x2] / [*Min] / *Sub) -10/Subcaves (discovered 3 exits: *Mat / Rec / [*Scr]) -8/Materials (discovered 3 exits: *Fac / *Sto x2) -8/Storage -7/Factory (discovered 2 exits: *Fac / *Low) -7/Lower Caves -7/Lower Caves (discovered 2 exits: *Fac / *Dat) -7/Data Miner -6/Proximity Caves -6/Factory (discovered 2 exits: *Fac / *Low) -6/Lower Caves -6/Zion -5/Proximity Caves -5/Factory (discovered 3 exits: *Fac / *Upp x2) -5/Upper Caves -5/Upper Caves -5/Zhirov -4/Proximity Caves -4/Factory (discovered 4 exits: *Res x2 / *Upp x2) -4/Waste -4/Factory (discovered 6 exits: *Res x2 / Upp x2 / *Ext x2) -4/Extension (discovered 2 exits: *Res / *Cet) -4/Cetus -4/Archives (discovered 3 exits: *Res / *Hub x2) -4/Hub_04(d) (discovered 3 exits: *Res x3) -3/Research (discovered 4 exits: *Res x3 / *Qua) -3/Quarantine -2/Research -2/Testing (discovered 3 exits: *Acc / *Sec / [*Frg]) -2/Section 7 -1/Access -1/Command History --------- Turn | Location | Event 16 | -11/Scrapyard | Discovered new exit (range 16) 117 | -11/Scrapyard | Entered Materials 264 | -10/Materials | Discovered new exit (range 12) 321 | -10/Materials | Build established: Mutant 440 | -10/Materials | Discovered new exit (range 13) 696 | -10/Materials | Discovered new exit (range 10) 1184 | -10/Materials | Discovered new exit (range 8) 1194 | -10/Materials | Entered Subcaves 1195 | -10/Subcaves | Approached by a straggling Scientist 1201 | -10/Subcaves | Discovered new exit (range 15) 1243 | -10/Subcaves | Disturbed a concealed Subdweller 1447 | -10/Subcaves | Shifting Twisted Machinery released Mak. Kinetic Plating 1505 | -10/Subcaves | Core integrity fell below 50% 1541 | -10/Subcaves | Shifting Twisted Machinery released Sub. Laser 1744 | -10/Subcaves | Shifting Twisted Machinery released Battle Rifle 1755 | -10/Subcaves | Shifting Twisted Machinery released Sub. Beam Cannon 1943 | -10/Subcaves | Scientist uncovered a shortcut to Scraptown 3342 | -10/Subcaves | Core integrity fell below 20% 3613 | -10/Subcaves | Shifting Twisted Machinery released Sub. Beam Cannon 3642 | -10/Subcaves | Shifting Twisted Machinery released Flamer 3923 | -10/Subcaves | Visited 4L-MR0's lab 3932 | -10/Subcaves | Identified exit to Recycling 3954 | -10/Subcaves | Found Maxwheels 4499 | -10/Subcaves | Entered Materials 4499 | -8/Materials | Evolved 4 slots: Propulsion x2, Utility x2 4502 | -8/Materials | Attached Maxwheels, gained temporary slots: Weapon x2 4871 | -8/Materials | Build established: Tank 4968 | -8/Materials | Discovered new exit (range 15) 5168 | -8/Materials | Discovered new exit (range 3) 5248 | -8/Materials | Identified exit to Storage 5300 | -8/Materials | Entered Storage 6071 | -8/Storage | Assisted by bots powering up and referring to "LRC-V3" 6122 | -8/Storage | Garrison activated, responded to threat 6222 | -8/Storage | Discovered new exit (range 16) 6226 | -8/Storage | Garrison activated, responded to threat 6295 | -8/Storage | Entered Factory 6295 | -7/Factory | Accompanied by 7 allies 6295 | -7/Factory | Evolved 2 slots: Propulsion x1, Utility x1 6381 | -7/Factory | Build established: Commander-Tank 6450 | -7/Factory | Lost 3 allies 6573 | -7/Factory | Lost 3 allies 6632 | -7/Factory | Discovered new exit (range 6) 6638 | -7/Factory | Identified exit to Lower Caves 6693 | -7/Factory | Discovered new exit (range 11) 7128 | -7/Factory | Identified exit to Factory 7153 | -7/Factory | Cargo convoy interrupted 7161 | -7/Factory | Entered Lower Caves 7484 | -7/Lower Caves | Build established: Skirmisher 7511 | -7/Lower Caves | Learned location of Extension (-4) 7551 | -7/Lower Caves | Encountered a Warlord checkpoint 7766 | -7/Lower Caves | Discovered new exit (range 7) 7771 | -7/Lower Caves | Identified exit to Lower Caves 7873 | -7/Lower Caves | Entered another Lower Caves area 7885 | -7/Lower Caves | Discovered exit to Factory (range 16) 8105 | -7/Lower Caves | Encountered a Warlord checkpoint 8258 | -7/Lower Caves | Discovered new exit (range 8) 8274 | -7/Lower Caves | Identified exit to Data Miner 8356 | -7/Lower Caves | Entered an active Warlord outpost 8358 | -7/Lower Caves | A Commander dispatched an escort 8368 | -7/Lower Caves | Learned location of 1 exit from Factory 8368 | -7/Lower Caves | Learned Extension trap positions 8368 | -7/Lower Caves | Learned Factory terminal intel 8426 | -7/Lower Caves | Learned Factory emergency access door positions 8653 | -7/Lower Caves | Entered Data Miner 8653 | -7/Data Miner | Accompanied by 2 allies 8653 | -7/Data Miner | Discovered new exit (range 6) 8654 | -7/Data Miner | Commander's escort returned to base 8654 | -7/Data Miner | Commander's escort returned to base 8671 | -7/Data Miner | Met Data Miner 8690 | -7/Data Miner | Learned location of Section 7 (-2) 8690 | -7/Data Miner | Acquired the access code to Warlord's prototype stash 8702 | -7/Data Miner | Received God Mode back door access code from Data Miner 8722 | -7/Data Miner | Identified exit to Proximity Caves 8724 | -7/Data Miner | Entered Proximity Caves 8761 | -6/Proximity Caves | Learned location of 1 exit from Factory 8774 | -6/Proximity Caves | Found DCF Scrap (13 items) 9265 | -6/Proximity Caves | Spotted B-75 Beast 9271 | -6/Proximity Caves | Discovered exit to Factory (range 12) 9281 | -6/Proximity Caves | Entered Factory 9281 | -6/Factory | Evolved 2 slots: Propulsion x1, Utility x1 9282 | -6/Factory | Identified exit to Factory 9282 | -6/Factory | Identified exit to Lower Caves 9284 | -6/Factory | Loaded intel: 26 terminal locations 9799 | -6/Factory | Build established: Mutant 10757 | -6/Factory | Entered Lower Caves 10759 | -6/Lower Caves | Attracted the attention of an 0b10 checkpoint 10850 | -6/Lower Caves | Encountered a Warlord checkpoint 10927 | -6/Lower Caves | A Derelict revealed a hidden shortcut to a safe place 10931 | -6/Lower Caves | Identified exit to Zion 10931 | -6/Lower Caves | Entered Zion 10947 | -6/Zion | Discovered new exit (range 16) 10975 | -6/Zion | System corruption cleaned by Quarantine Array 11004 | -6/Zion | Gained Derelict followers 11045 | -6/Zion | Learned Factory trap positions 11074 | -6/Zion | Met Imprinter 11078 | -6/Zion | Imprinted 11080 | -6/Zion | Declared Zion's savior 11112 | -6/Zion | Identified exit to Proximity Caves 11116 | -6/Zion | Build established: Ninja 11358 | -6/Zion | Entered Proximity Caves 11358 | -5/Proximity Caves | Accompanied by 10 allies 11456 | -5/Proximity Caves | Attracted the attention of an 0b10 checkpoint 11483 | -5/Proximity Caves | Spotted B-75 Beast 11526 | -5/Proximity Caves | Learned Factory security intel 11534 | -5/Proximity Caves | Learned Factory terminal intel 11705 | -5/Proximity Caves | Discovered exit to Factory (range 5) 11772 | -5/Proximity Caves | Entered Factory 11772 | -5/Factory | Accompanied by 8 allies 11772 | -5/Factory | Evolved 2 slots: Utility x2 11773 | -5/Factory | Loaded intel: 117 trap records 11775 | -5/Factory | Loaded intel: 26 terminal locations 11842 | -5/Factory | Retrieved Zion intel report: Branch Access 11842 | -5/Factory | Identified exit to Upper Caves 11862 | -5/Factory | Lost 3 allies 12025 | -5/Factory | Retrieved Zion intel report: Prototype Stockpiles 12025 | -5/Factory | Discovered new exit (range 5) 12026 | -5/Factory | Zion Fire squad teleported in 12026 | -5/Factory | Identified exit to Factory 12092 | -5/Factory | Entered Upper Caves 12092 | -5/Upper Caves | Accompanied by 3 allies 12173 | -5/Upper Caves | Discovered new exit (range 14) 12176 | -5/Upper Caves | Attracted the attention of an 0b10 outpost 12176 | -5/Upper Caves | Identified exit to Upper Caves 12176 | -5/Upper Caves | Entered another Upper Caves area 12183 | -5/Upper Caves | Identified exit to Zhirov 12255 | -5/Upper Caves | Spotted B-75 Beast 12351 | -5/Upper Caves | Found DCF Scrap (10 items) 12352 | -5/Upper Caves | Entered Zhirov 12352 | -5/Zhirov | Discovered new exit (range 3) 12357 | -5/Zhirov | Met Zhirov 12361 | -5/Zhirov | Learned location of Quarantine (-3) 12361 | -5/Zhirov | Learned location of Testing (-2) 12361 | -5/Zhirov | Learned location of Command (-1) 12363 | -5/Zhirov | Zhirov requested help retrieving the SGEMP Prototype 12367 | -5/Zhirov | Found Alien Artifact 12367 | -5/Zhirov | Identified Integrated Reactor 12367 | -5/Zhirov | Installed Integrated Reactor, increased core energy generation (+10) 12374 | -5/Zhirov | Found Alien Artifact 12427 | -5/Zhirov | Identified exit to Proximity Caves 12428 | -5/Zhirov | Entered Proximity Caves 12428 | -4/Proximity Caves | Spotted B-86 Titan 12556 | -4/Proximity Caves | Spotter reported a threat 12635 | -4/Proximity Caves | Spotter reported a threat 12687 | -4/Proximity Caves | Discovered exit to Factory (range 9) 12751 | -4/Proximity Caves | Entered Factory 12751 | -4/Factory | Evolved 2 slots: Propulsion x1, Utility x1 12753 | -4/Factory | Discovered new exit (range 22) 12757 | -4/Factory | Identified exit to Upper Caves 12775 | -4/Factory | Retrieved Zion intel report: Prototype Schematics 12821 | -4/Factory | Retrieved Zion intel report: Depthwide Sectors/-3 12855 | -4/Factory | Retrieved Zion intel report: Component Schematics 12925 | -4/Factory | Retrieved Zion intel report: Trap Installations 12949 | -4/Factory | Found Prototype Device 12954 | -4/Factory | Identified Exp. ECM Suite 12967 | -4/Factory | Retrieved Zion intel report: Prototype Stockpiles 12968 | -4/Factory | Zion Explosive Resupply teleported in 13001 | -4/Factory | Search patrols dispatched 13053 | -4/Factory | Discovered new exit (range 9) 13054 | -4/Factory | Identified exit to Research 13066 | -4/Factory | Discovered exit to Upper Caves (range 19) 13114 | -4/Factory | Retrieved Zion intel report: Component Schematics 13144 | -4/Factory | Discovered exit to Research (range 17) 13183 | -4/Factory | Retrieved Zion intel report: Component Schematics 13184 | -4/Factory | Zion Demo squad teleported in 13234 | -4/Factory | Retrieved Zion intel report: Emergency Access 13246 | -4/Factory | Found Prototype Processor 13246 | -4/Factory | Identified Exp. Terrain Scan Processor 13271 | -4/Factory | Spotted B-86 Titan 13331 | -4/Factory | Build established: Hacker-Ninja 13356 | -4/Factory | Retrieved Zion intel report: Guard Positions 13357 | -4/Factory | Zion Heavy squad teleported in 13571 | -4/Factory | Manually triggered Chute Trap 13571 | -4/Factory | Sucked down chute 13571 | -4/Factory | Entered Waste 13572 | -4/Waste | Joined by Warlord forces that had cleared the area 13700 | -4/Waste | Discovered new exit (range 22) 13764 | -4/Waste | Identified exit to Factory 13794 | -4/Waste | Entered Factory 13794 | -4/Factory | Accompanied by 18 allies 13836 | -4/Factory | Zion Trap Resupply teleported in 13840 | -4/Factory | Discovered exit to Research (range 5) 13846 | -4/Factory | Zion Trap Resupply teleported in 13854 | -4/Factory | Lost 3 allies 14027 | -4/Factory | Retrieved Zion intel report: Prototype Stockpiles 14061 | -4/Factory | Retrieved Zion intel report: Component Stockpiles 14079 | -4/Factory | Retrieved Zion intel report: Prototype Schematics 14101 | -4/Factory | Spotted B-86 Titan 14281 | -4/Factory | Retrieved Zion intel report: Active Terminals 14305 | -4/Factory | Discovered exit to Research (range 22) 14308 | -4/Factory | Retrieved Zion intel report: Unaware Schematics 14312 | -4/Factory | Retrieved Zion intel report: Branch Access 14312 | -4/Factory | Identified exit to Extension 14313 | -4/Factory | Zion Heavy squad teleported in 14321 | -4/Factory | Zion Fire squad teleported in 14323 | -4/Factory | Zion Fire squad teleported in 14368 | -4/Factory | Entered Extension 14368 | -4/Extension | Accompanied by 8 allies 14369 | -4/Extension | Loaded intel: 20 trap records 14380 | -4/Extension | Zion Heavy squad teleported in 14425 | -4/Extension | Zion Trap Resupply teleported in 14467 | -4/Extension | Retrieved Zion intel report: Component Stockpiles 14477 | -4/Extension | Rescued a captive Derelict 14478 | -4/Extension | Rescued a captive Derelict 14483 | -4/Extension | Rescued a captive Derelict 14508 | -4/Extension | Rescued a captive Derelict 14515 | -4/Extension | Rescued a captive Derelict 14516 | -4/Extension | Rescued a captive Derelict 14714 | -4/Extension | Build established: Trapper-Scout 14758 | -4/Extension | Spotted B-86 Titan 14877 | -4/Extension | Allies destroyed B-86 Titan 14878 | -4/Extension | Spotted B-86 Titan 14895 | -4/Extension | Allies destroyed B-86 Titan 14906 | -4/Extension | Lost 3 allies 14913 | -4/Extension | Zion Kinetic Resupply teleported in 14932 | -4/Extension | Rescued a captive Derelict 14934 | -4/Extension | Rescued a captive Derelict 15009 | -4/Extension | Rescued a captive Derelict 15010 | -4/Extension | Rescued a captive Derelict 15034 | -4/Extension | Rescued A7 15308 | -4/Extension | Discovered exit to Research (range 10) 15309 | -4/Extension | Discovered new exit (range 6) 15310 | -4/Extension | Identified exit to Cetus 15327 | -4/Extension | Lost 4 allies 15352 | -4/Extension | Entered Cetus 15352 | -4/Cetus | Accompanied by 14 allies (A7) 15357 | -4/Cetus | Acquired a Cetus Manufacturing Module code from A7 15360 | -4/Cetus | Spotted Cetus Guard 15360 | -4/Cetus | Spotted Cetus Guard 15363 | -4/Cetus | Spotted Cetus Guard 15368 | -4/Cetus | Allies destroyed Cetus Guard 15368 | -4/Cetus | Spotted Cetus Guard 15377 | -4/Cetus | Allies destroyed Cetus Guard 15382 | -4/Cetus | Allies destroyed Cetus Guard 15384 | -4/Cetus | Allies destroyed Cetus Guard 15393 | -4/Cetus | Started Cetus Manufacturing Module 15411 | -4/Cetus | Escorted A7 to Cetus Mainframe 15418 | -4/Cetus | Manufactured an Enhanced Grunt 15443 | -4/Cetus | Manufactured an Enhanced Grunt 15468 | -4/Cetus | Manufactured an Enhanced Grunt 15493 | -4/Cetus | Manufactured an Enhanced Grunt 15518 | -4/Cetus | Manufactured an Enhanced Grunt 15525 | -4/Cetus | Discovered new exit (range 22) 15578 | -4/Cetus | Murdered A7 15579 | -4/Cetus | Extracted ID and sensor layout for unrecognized location from A7's data core 15586 | -4/Cetus | Identified exit to Archives 15601 | -4/Cetus | Entered Archives 15601 | -4/Archives | Accompanied by 18 allies 15626 | -4/Archives | Discovered new exit (range 22) 15630 | -4/Archives | Discovered new exit (range 22) 15631 | -4/Archives | Discovered exit to Research (range 21) 15644 | -4/Archives | Identified exit to Hub_04(d) 15932 | -4/Archives | Build established: Commander-Ninja 15984 | -4/Archives | Entered Hub_04(d) 15984 | -4/Hub_04(d) | Accompanied by 17 allies 16036 | -4/Hub_04(d) | Retrieved Zion intel report: Active Terminals 16037 | -4/Hub_04(d) | Zion Hacking Resupply teleported in 16047 | -4/Hub_04(d) | Zion Heavy squad teleported in 16127 | -4/Hub_04(d) | Retrieved Zion intel report: Emergency Access 16131 | -4/Hub_04(d) | Retrieved Zion intel report: Prototype Schematics 16132 | -4/Hub_04(d) | Discovered exit to Research (range 21) 16223 | -4/Hub_04(d) | Discovered exit to Research (range 16) 16231 | -4/Hub_04(d) | Network Hub disabled 16238 | -4/Hub_04(d) | Discovered exit to Research (range 18) 16245 | -4/Hub_04(d) | Network Hub disabled 16261 | -4/Hub_04(d) | Spotted Lightning 16262 | -4/Hub_04(d) | Spotted Lightning 16265 | -4/Hub_04(d) | Entered Research 16265 | -3/Research | Evolved 2 slots: Power x1, Utility x1 16286 | -3/Research | Lost 6 allies 16390 | -3/Research | Spotted B-86 Titan 16503 | -3/Research | Retrieved Zion intel report: Trap Installations 16506 | -3/Research | Retrieved Zion intel report: Component Schematics 16520 | -3/Research | Discovered new exit (range 4) 16521 | -3/Research | Identified exit to Research 16550 | -3/Research | Discovered exit to Research (range 9) 16556 | -3/Research | Retrieved Zion intel report: Active Garrisons 16557 | -3/Research | Build established: Trapper-Ninja 16577 | -3/Research | Retrieved Zion intel report: Prototype Stockpiles 16582 | -3/Research | Retrieved Zion intel report: Prototype Schematics 16665 | -3/Research | Retrieved Zion intel report: Unaware Schematics 16666 | -3/Research | Spotted B-86 Titan 16689 | -3/Research | Retrieved Zion intel report: Unaware Analyses 16746 | -3/Research | Retrieved Zion intel report: Depthwide Sectors/-2 16793 | -3/Research | Discovered exit to Research (range 22) 16799 | -3/Research | Retrieved Zion intel report: Unaware Schematics 16880 | -3/Research | Retrieved Zion intel report: Component Schematics 16911 | -3/Research | Discovered new exit (range 10) 16913 | -3/Research | Identified exit to Quarantine 16913 | -3/Research | Entered Quarantine 16919 | -3/Quarantine | Found Alien Slashing Weapon 16919 | -3/Quarantine | Identified Sigix Broadsword 16993 | -3/Quarantine | Found Alien Artifact 16993 | -3/Quarantine | Identified Core Reset Matrix 16993 | -3/Quarantine | Identified Transdimensional Reconstructor 16993 | -3/Quarantine | Used Core Reset Matrix 16997 | -3/Quarantine | Detected hypermatrix surge 16997 | -3/Quarantine | Sensed 14 artifacts in vicinity 17027 | -3/Quarantine | Found Hpw. Transdimensional Reconstructor 17038 | -3/Quarantine | Found Unknown Launcher 17038 | -3/Quarantine | Identified Gamma Bomb Array 17044 | -3/Quarantine | Retrieved Zion intel report: Active Garrisons 17075 | -3/Quarantine | Retrieved Zion intel report: Emergency Access 17077 | -3/Quarantine | Retrieved Zion intel report: Unaware Schematics 17109 | -3/Quarantine | Retrieved Zion intel report: Component Stockpiles 17111 | -3/Quarantine | Discovered exit to Research (range 14) 17115 | -3/Quarantine | Retrieved Zion intel report: Unaware Analyses 17117 | -3/Quarantine | Retrieved Zion intel report: Prototype Schematics 17121 | -3/Quarantine | Central database locked down 17178 | -3/Quarantine | Entered Research 17178 | -2/Research | Evolved 2 slots: Propulsion x1, Utility x1 17295 | -2/Research | Retrieved Zion intel report: Active Terminals 17303 | -2/Research | Retrieved Zion intel report: Prototype Stockpiles 17304 | -2/Research | Zion Heavy squad teleported in 17359 | -2/Research | Retrieved Zion intel report: Active Garrisons 17637 | -2/Research | Retrieved Zion intel report: Prototype Schematics 17678 | -2/Research | First assault squad dispatched 17786 | -2/Research | Retrieved Zion intel report: Component Stockpiles 17787 | -2/Research | Zion Experimental squad teleported in 17818 | -2/Research | Spotted B-90 Cyclops 17858 | -2/Research | Found Prototype Protection 17865 | -2/Research | Discovered new exit (range 7) 17866 | -2/Research | Identified exit to Testing 17867 | -2/Research | Entered Testing 17883 | -2/Testing | Retrieved Zion intel report: Active Terminals 17940 | -2/Testing | Found Prototype Ballistic Gun 17940 | -2/Testing | Identified Hyp. Multirail 18053 | -2/Testing | Retrieved Zion intel report: Prototype Stockpiles 18063 | -2/Testing | Found Prototype Device 18063 | -2/Testing | Identified AEGIS Remote Shield 18064 | -2/Testing | Identified Zio. Shade Armor 18154 | -2/Testing | Discovered new exit (range 14) 18177 | -2/Testing | Spotted Fortress 18194 | -2/Testing | Discovered new exit (range 6) 18194 | -2/Testing | Discovered new exit (range 6) 18389 | -2/Testing | Identified exit to Section 7 18390 | -2/Testing | Entered Section 7 18391 | -2/Section 7 | Detected hypermatrix surge 18391 | -2/Section 7 | Sensed 19 artifacts in vicinity 18424 | -2/Section 7 | Retrieved Zion intel report: Main Access 18424 | -2/Section 7 | Identified exit to Access 18454 | -2/Section 7 | Retrieved Zion intel report: Active Terminals 18473 | -2/Section 7 | Retrieved Zion intel report: Emergency Access 18579 | -2/Section 7 | Spotted B-90 Cyclops 18583 | -2/Section 7 | Spotted S7 Guard 18596 | -2/Section 7 | Found Integrated Thermoelectric Network 18596 | -2/Section 7 | Installed Integrated Thermoelectric Network, gained heat-energy exchange potential 18643 | -2/Section 7 | Found Prototype Device 18643 | -2/Section 7 | Identified Exp. EM Shield 18699 | -2/Section 7 | Retrieved Zion intel report: Prototype Schematics 18769 | -2/Section 7 | Warped through subspace 18774 | -2/Section 7 | Found Integrated Dissipator 18774 | -2/Section 7 | Installed Integrated Dissipator, increased core heat dissipation (+20) 18802 | -2/Section 7 | Found Integrated Reactor 18802 | -2/Section 7 | Installed Integrated Reactor, increased core energy generation (+10) 18812 | -2/Section 7 | Found Integrated Reactor 18812 | -2/Section 7 | Installed Integrated Reactor, increased core energy generation (+10) 18823 | -2/Section 7 | Spotted Executioner 18823 | -2/Section 7 | Spotted Executioner 18842 | -2/Section 7 | Found Transdimensional Reconstructor 18845 | -2/Section 7 | Found Transdimensional Reconstructor 18864 | -2/Section 7 | Spotted B-99 Colossus 18881 | -2/Section 7 | Found LRC Matter Compressor 18881 | -2/Section 7 | Installed LRC Matter Compressor, increased matter storage capacity (+125) 18894 | -2/Section 7 | Found Integrity Redistributor 18894 | -2/Section 7 | Used Integrity Redistributor, redistributed integrity from core (-106) 18898 | -2/Section 7 | Found Integrity Redistributor 18903 | -2/Section 7 | Found Integrity Redistributor 19018 | -2/Section 7 | Spotted Striker 19018 | -2/Section 7 | Spotted Striker 19021 | -2/Section 7 | Warped through subspace 19023 | -2/Section 7 | Found Sigix Shearcannon 19028 | -2/Section 7 | Spotted Striker 19028 | -2/Section 7 | Spotted Striker 19070 | -2/Section 7 | Entered Access 19070 | -1/Access | Evolved 2 slots: Power x1, Weapon x1 19105 | -1/Access | Retrieved Zion intel report: Branch Access 19105 | -1/Access | Identified exit to Command 19170 | -1/Access | Retrieved Zion intel report: Emergency Access 19171 | -1/Access | Zion Experimental squad teleported in 19213 | -1/Access | Entered Command 19213 | -1/Command | Accompanied by 1 ally 19213 | -1/Command | Spotted B-99 Colossus 19275 | -1/Command | Retrieved Zion intel report: Active Terminals 19288 | -1/Command | Retrieved Zion intel report: Prototype Schematics 19295 | -1/Command | Retrieved Zion intel report: Component Schematics 19307 | -1/Command | Build established: Alien-Ninja 19311 | -1/Command | Retrieved Zion intel report: Unaware Schematics 19412 | -1/Command | Retrieved Zion intel report: Depthwide Sectors/-1 19441 | -1/Command | Disengaged cave seal 19441 | -1/Command | Zionites emerged from the dark tunnel 19609 | -1/Command | Allies destroyed B-99 Colossus 19658 | -1/Command | Lost 3 allies 19748 | -1/Command | Build established: Commander-Ninja 19871 | -1/Command | High security lockdown imminent 19875 | -1/Command | Spotted M Guard 19875 | -1/Command | Spotted M Guard 19878 | -1/Command | Spotted Combat Programmer 19878 | -1/Command | Spotted Combat Programmer 19897 | -1/Command | Combat Programmer assimilated allied LC-13E(i) 19929 | -1/Command | Destroyed Combat Programmer 19951 | -1/Command | High security lockdown engaged 19953 | -1/Command | Found Zio. Shade Armor 20042 | -1/Command | Lost 5 allies 20062 | -1/Command | Destroyed Combat Programmer 20066 | -1/Command | Allies destroyed M Guard 20068 | -1/Command | Allies destroyed M Guard 20068 | -1/Command | All MAIN.C guards destroyed 20069 | -1/Command | Found Prototype Reactor 20069 | -1/Command | Identified Zero-point Reactor 20071 | -1/Command | Found Prototype Processor 20071 | -1/Command | Identified Exp. Targeting Computer 20074 | -1/Command | Found Prototype Protection 20076 | -1/Command | Found Zero-point Reactor 20092 | -1/Command | Spotted Executioner 20092 | -1/Command | Spotted Striker 20092 | -1/Command | Spotted Investigator 20093 | -1/Command | Lost 7 allies 20102 | -1/Command | Allies destroyed Striker 20120 | -1/Command | Met MAIN.C 20126 | -1/Command | 0b10 Conduit disabled 20151 | -1/Command | Identified Hvy. Regenerative Plating 20234 | -1/Command | Allies destroyed Executioner 20235 | -1/Command | Used Integrity Redistributor, redistributed integrity from core (-181) 20263 | -1/Command | System corruption reached 10% 20270 | -1/Command | Allies destroyed Investigator 20275 | -1/Command | Destroyed MAIN.C Shell 20277 | -1/Command | MAIN.C activated Command garrisons 20277 | -1/Command | Used Integrity Redistributor, redistributed integrity from core (-156) 20278 | -1/Command | Core integrity fell below 50% 20308 | -1/Command | Found Prototype Launcher 20308 | -1/Command | Identified Containment Facilitator 20320 | -1/Command | Emitted hypermatrix ping 20325 | -1/Command | Assembled emerged from beneath the floor 20344 | -1/Command | Assembled emerged from beneath the floor 20353 | -1/Command | Lost 9 parts (2p2n3u2w) 20370 | -1/Command | Found Zio. Shade Armor 20385 | -1/Command | Core integrity fell below 20% 20387 | -1/Command | Destroyed by MAIN.C with Improved Heavy Machine Gun Last Messages --------------- 20385_ Slug penetrates Earth. 20385_ Penetrated by Slug. 20386_ System corrupted: Component data lost. 20386_ Cld. Nuclear Pulse Thruster destroyed. 20386_ Slug penetrates K-01 Serf. 20386_ Slug penetrates Wall. 20387_ C-45 Heavy ARC bursts open, deploying its payload. 20387_ H-88 Terminator unfolds itself. 20387_ Slug penetrates G-73 Enforcer. 20387_ Penetrated by Slug. 20387_ Impulse Thruster Array+ destroyed. 20387_ C-57 Dissector destroyed. 20387_ Slug penetrates Earth. 20387_ Penetrated by Slug. 20387_ Imp. Fusion Compressor destroyed. 20387_ K-01 Serf destroyed. 20387_ C-45 Heavy ARC bursts open, deploying its payload. 20387_ P-80 Master unfolds itself. 20387_ C-45 Heavy ARC bursts open, deploying its payload. 20387_ S-43 Plague unfolds itself. Map ----- +----------------------------------------------------+ | #!%* ####"#"" "# """" #????# #?? | | #% " !=!=[%| # """" #????# #?? | | # "T% * *!=!![ + #????# #?? | | #[% ###%#[%! # #????###+##+####%" #?? | | ##/######## %! # #???#### ? ????? | | ! ## = # +??? ?? ?????? | | ## " #???# ??%* ???????? | | ! "" # " #???# ;###+"#####????? | | """"## ";;##############"+;" %[ #????? | | %""""# ##s """T"""% "%=*] #????? | | [ "" ## # " " """=%*! ""#????? | | ## = # """ %=%%% ""####?? | | # "" =! !%= T"## ?? | | ######"### p# " =%[ ] ""## #?? | | ??????##?# hMx =]! ! ""## #?? | | ?????????# !# # % %* h*% = ## #?? | | ?????????##*# ## ! % h % [ !## #?? | | ??????????##|! ##% ##/##;#;;;;##%=#"##### #?? | | ????########! %%! ! #?? | | ????# [ # !%*[! ## =[[ ##### #?? | | ????# x =%%[% #?###%! #???# ### | | ????# """"" # =*k/=*; #???#![ #???# | | ????# ""Y""i ##=!!/%= ;#+#####+#"+#####+### | | ????# hs;x[%%*![[ !g # # | | ????# ] s s %! =%= =%ggg# * # ] | | ##??# i s; ! s !*!;*@ # "# | | #??# h ;;%= % %]; %* # # [ | | ####"+######;;!%==% /;; # "####+### | | / !^ % !=%[%=! # """" T# ## | | / h%= [!= % # """" "# # | | / !=* h ! ; """" "# ! # | | / ^/ %! h # """" "# # | | / % %=*%! Ch # # + | | ###"####* !|%#;p*#;#;###### # # # | | #?###??# !=# * """" ???? # # # | | ##??????# % # ""R"" #??? ##### /############# | | ????????# % # " " !#??? ???? ??????????? | | ????????" * # [ #??? ??? ?????????? | | ???????##=%! # ! #??? ?? ? ???????? | | ????????# ! # +??? ? ??? ?????? | | ???????## # #??? %###????+???? "" | | ???????#" # = #??? =??????????? """" | | ???????## ###########??? #?????????# """" | | ????????# #????????????? ?+?????????# "" | | ######### #??????????????????????????# | | !!+%* #??????????????????????????# ? | | %|## #??????????????????????????# ?? | | ! *## #??????????????????????????# ???? | | ### ####??????????????????????????###????# | | " ! #?# #????????????????????????????????????# | +----------------------------------------------------+ Best States ------------- Heat Dissipation 91 Energy Generation 93 Energy Capacity 290 Matter Stores 425 Matter Capacity 425 Sight Range 22 Robot Scan Range 18 Terrain Scan Density 10 ECM Strength 1 Cloak Strength 4 Additional Mass Support 9 Armor Coverage 825 Resistance: KI 30 Resistance: TH 30 Resistance: EX 30 Resistance: EM 75 Resistance: I 30 Resistance: S 30 Resistance: P 30 Core Shielding 30 Weapon Shielding 90 Point Defense Rating 240 Weapon Cycling 25 Evasion (%) 78 Targeting Accuracy 12 Melee Accuracy 6 Target Analysis 8 Core Analysis 6 Recoil Reduction 2 Offensive Hacking 26 Defensive Hacking 12 Trap Extractor Capacity 6 Item Schematics ----------------- Exp. Heat Sink | -3/Quarantine | Z-intel Lrn. Phase Cannon | -3/Quarantine | Z-intel Hds. Centrium Wheel | -3/Quarantine | Z-intel Vibroblade | -3/Quarantine | Z-intel Cld. Field Propulsion Drive | -3/Quarantine | Z-intel Nanosword | -3/Quarantine | Z-intel Quantum Shading Machine | -3/Quarantine | Z-intel Exp. Coolant Injector | -3/Quarantine | Z-intel Cld. Fission Core | -3/Quarantine | Z-intel Cld. Linear Gravjet | -2/Research | Z-intel Enh. Multireflex Exoskeleton | -2/Research | Z-intel Adv. Energy Well | -2/Research | Z-intel Exp. Matter Compressor | -2/Research | Z-intel Hvy. Antimatter Reactor | -2/Research | Z-intel Exp. Energy Well | -2/Research | Z-intel Exp. Propulsion Shielding | -2/Research | Z-intel Adv. Micro-nuke Launcher | -2/Research | Z-intel Molecular Scythe | -2/Research | Z-intel Com. Tesla Bomb Launcher | -2/Research | Z-intel Exp. Terrain Scan Processor | -2/Research | Z-intel Gui. Micro-nuke Launcher | -2/Research | Z-intel Prc. Matter Filter | -2/Section 7 | Z-intel Imp. Matter Compressor | -2/Section 7 | Z-intel Exp. Cloaking Device | -2/Section 7 | Z-intel Exp. Core Analyzer | -2/Section 7 | Z-intel Helical Railgun | -2/Section 7 | Z-intel Exp. EM Shield | -2/Section 7 | Z-intel Exp. Shock Absorption System | -2/Section 7 | Z-intel Exp. Reaction Control System | -2/Section 7 | Z-intel Cld. Antigrav System | -2/Section 7 | Z-intel Exp. Flexi-carbon Leg | -1/Command | Z-intel Cld. Q-thruster | -1/Command | Z-intel Thermal Defense Suite | -1/Command | Z-intel Imp. Energy Well | -1/Command | Z-intel Exp. Cooling System | -1/Command | Z-intel Exp. Myomer Leg | -1/Command | Z-intel Hvy. Gatling Laser | -1/Command | Z-intel Diametric Drive | -1/Command | Z-intel Hvy. Proton Cannon | -1/Command | Z-intel Com. Battery | -1/Command | Z-intel Core Analyzer | -1/Command | Z-intel Hrd. Heavy Armor Plating | -1/Command | Z-intel Biometal Heavy Treads | -1/Command | Z-intel Triangulator | -1/Command | Z-intel Enh. Nova Cannon | -1/Command | Z-intel Adv. Remote Datajack | -1/Command | Z-intel Imp. Focal Shield | -1/Command | Z-intel Lance | -1/Command | Z-intel Enh. Hardcell Cannon | -1/Command | Z-intel Reaction Control System | -1/Command | Z-intel System Shield | -1/Command | Z-intel Heavy Servo Lattice | -1/Command | Z-intel Tesla Rifle | -1/Command | Z-intel Great Axe | -1/Command | Z-intel Robot Schematics ------------------ R-06 Scavenger | -3/Quarantine | Z-intel L-61 Swordsman | -3/Quarantine | Z-intel O-32 Director | -3/Quarantine | Z-intel K-01 Serf | -1/Command | Z-intel B-74 Champion | -1/Command | Z-intel A-15 Conveyor | -1/Command | Z-intel C-55 Analyst | -1/Command | Z-intel A-27 Freighter | -1/Command | Z-intel Fabricated ------------ Nothing Repaired ---------- Nothing Studied --------- Impulse Thruster Array | -3/Quarantine | Hacked Com. HERF Cannon | -3/Quarantine | Hacked Enh. Nova Cannon | -3/Quarantine | Hacked Lgt. Antimatter Reactor | -2/Research | Hacked Alien Tech Used ----------------- Integrated Reactor Sigix Broadsword Core Reset Matrix Integrated Thermoelectric Network High-powered Transdimensional Reconstructor Integrated Dissipator LRC Matter Compressor Integrity Redistributor Transdimensional Reconstructor Sigix Shearcannon Achievements -------------- Just Shoot The Terminal Challenges ------------ None Game ------ Seed WeldingTiamatMesh Manual? 0 Play Time 05:25:48 Cumulative 573.0 hours Start 2026.08.11 @ 18:56:54 End 2026.08.12 @ 19:55:38 Sessions 5 Manual Loads 0 Difficulty Rogue Special Mode None Game No. 199 Rogue 178 Adventurer 21 Explorer 0 Win Type - Total 29 Types 17/1/6/1/0/0/0/3/0/1 Lore% 70 Gallery% 76 Achievement% 70 Wizard Run 0 Options --------- Layout 1 ASCII 0 Keyboard 0 Movement Mouse Keybinds 0 Fullscreen 2 Font 32/SmallcapsGlow Map View 77x35 Zoom Use 0% Tactical HUD 1 Map Filters NONE Filters NONE Steam 1 RUN: b7efa11b-9a8c-4d98-83a2-460f6e245e9f